Cogmind - Beta 16.1 @@@ ROGUE MODE // 2026.02.24 @ 17:08:24 Player: Savant Result: Destroyed by Immortal with Experimental Jetlance Performance ------------- Evolutions (8) 4000 Regions Visited (41) 8200 Robots Destroyed (668) 3340 Value Destroyed (39703) 39703 Prototype IDs (120) 2400 Alien Tech Used (5) 1000 Bonus (18456) 18456 TOTAL SCORE: 77099 Bonus ------- Triggered High Security 500 High Alert Combat Kills 7219 Follower Combat Kills 1137 Hunted by Unchained 1000 Destroyed Unchained 1000 Entered Garrisons 1200 Met Data Miner 300 Met Imprinter 300 Acquired ECA 300 Met Zhirov 300 Met Warlord at Base 500 MAIN.C Attacked Warlord 500 Warlord Defense Kills 2152 Met Warlord at Research 2000 Scanned by Researcher 500 Friendly Fire -452 Cogmind --------- Core Integrity 0/1450 Matter 20/300 Energy 947/1400 System Corruption 15% Temperature Cool (0) Movement Core (500) Ox9 Location -2/Protoforge Parts ------- > --- POWER (3) -------- Hybrid Graviton Reactor > --- PROPULSION (6) --- (None) > --- UTILITY (11) ----- Tactical Coordination Suite (fused) AEGIS Remote Shield Ghost Barrier > --- WEAPON (4) ------- (None) > --- INVENTORY (5) ---- Concept Chromion Battery (0) Concept Chromion Battery (0) Advanced Matter Compressor (56) Graviton Cannon Z-bomb Delivery System Peak State ------------ > --- POWER ------------ Graviton Reactor Improved Quantum Reactor Improved Quantum Reactor > --- PROPULSION ------- Biometal Heavy Treads High-density Centrium Heavy Treads High-density Centrium Heavy Treads > --- UTILITY ---------- Huge Storage Unit Experimental Optical Array Zeronet Interface Advanced Targeting Computer Tactical Coordination Suite SHELL Armor AEGIS Remote Shield System Mapper Ghost Barrier > --- WEAPON ----------- Graviton Cannon Graviton Cannon Core Stripper > --- INVENTORY -------- Vortex Chain Reactor Biometal Heavy Treads Advanced Cooling System Improved Energy Well Experimental Energy Well Advanced Matter Compressor Advanced Kinecellerator Advanced Component Analysis Suite Mobile Refinery Mk. CCLXVII Transdimensional Reconstructor Compact HERF Cannon Vortex Cannon Vortex Cannon Vortex Cannon Vortex Cannon Enhanced Nova Cannon Graviton Cannon Graviton Cannon Graviton Cannon Perforator Hellfire Missile Launcher Z-bomb Delivery System [Rating: 246] Favorites ----------- Power F-cell Engine Engine F-cell Engine Power Core Light Neutrino Core Reactor Vortex Chain Reactor Propulsion Improved Heavy Treads Treads Improved Heavy Treads Leg Experimental Myomer Leg Wheel Armored Wheel Hover Unit Cooled Antigrav System Flight Unit Electron Diverter Utility Huge Storage Unit Device Advanced Cooling System Storage Huge Storage Unit Processor Advanced Targeting Computer Hackware Hacking Suite Protection Layered Medium Armor Plating Artifact Phase Armor Weapon Mini Assault Cannon Energy Gun Gatling Laser Energy Cannon Cooled Proton Cannon Ballistic Gun Enhanced Autogun Ballistic Cannon Mini Assault Cannon Launcher Missile Launcher Special Weapon Mining Laser Impact Weapon Powered Hammer Slashing Weapon Katana Build | -11 -10 -10 -10 -9 -8 -8 -8 -8 -8 -8 -8 -7 -7 -7 -7 -6 -6 -6 -6 -6 -6 -6 -5 -5 -5 -5 -5 -5 -5 -4 -4 -4 -4 -4 -3 -3 -3 -3 -2 -2 -2 ------- Run | Yrd Mat Min Exi Min Mat Gar Mat Gar Mat Gar Mat Fac Low Low Dat Pro Fac Gar Fac Low Low Zio Pro Fac Gar Fac Upp Upp Zhi Pro Fac Upp Upp War Pro Res Tes Gar Res Qua Frg Slots Evolved 16 | . . . . . 4 . . . . . . 2 . . . . 2 . . . . . . 2 . . . . . . 2 . . . . 2 . . 2 . . Power 2 | . . . . . . . . . . . . . . . . . 1 . . . . . . . . . . . . . 1 . . . . . . . . . . Propulsion 3 | . . . . . 2 . . . . . . . . . . . . . . . . . . . . . . . . . 1 . . . . . . . . . . Utility 9 | . . . . . 2 . . . . . . 1 . . . . 1 . . . . . . 2 . . . . . . . . . . . 2 . . 1 . . Weapon 2 | . . . . . . . . . . . . 1 . . . . . . . . . . . . . . . . . . . . . . . . . . 1 . . Parts Attached 358 | 7 7 . 1 1 25 11 10 5 1 9 6 10 5 8 . 6 13 18 6 3 3 1 2 20 18 11 5 2 4 6 19 5 4 19 1 12 21 10 14 18 11 Power 47 | 1 1 . . . 4 . 2 . . 3 1 . 2 2 . . 1 4 1 1 . . 1 2 1 . . 1 2 1 2 1 . 2 . . 1 4 2 2 2 Engine 15 | 1 1 . . . . . 1 . . 1 . . 1 1 . . . 4 1 1 . . . 2 1 . . . . . . . . . . . . . . . . Core 13 | . . . . . 4 . 1 . . 2 1 . 1 1 . . 1 . . . . . . . . . . 1 1 . . . . . . . . . . . . Reactor 19 | . . . . . . . . . . . . . . . . . . . . . . . 1 . . . . . 1 1 2 1 . 2 . . 1 4 2 2 2 Propulsion 83 | 2 . . . . 7 8 3 1 . 1 2 3 . 2 . 1 2 5 . . 1 . . 5 5 . 1 . 1 2 7 1 . 8 1 2 2 2 3 4 1 Treads 59 | 2 . . . . 4 5 1 1 . 1 1 1 . 1 . 1 1 3 . . . . . 2 3 . 1 . 1 1 7 1 . 6 1 2 2 2 3 4 1 Leg 2 | . . . . . . . . . . . . . . . . . . . . . . . . . 1 . . . . . . . . 1 . . . . . . . Wheel 19 | . . . . . 3 3 2 . . . 1 2 . 1 . . 1 2 . . 1 . . 3 . . . . . . . . . . . . . . . . . Hover 1 | . . . . . . . . . . . . . . . . . . . . . . . . . . . . . . . . . . 1 . . . . . . . Flight 2 | . . . . . . . . . . . . . . . . . . . . . . . . . 1 . . . . 1 . . . . . . . . . . . Utility 135 | 2 2 . . . 7 1 4 3 . 2 3 6 2 . . 4 7 5 3 1 1 1 . 9 3 7 4 1 1 . 8 3 2 7 . 9 9 1 6 8 3 Device 66 | 1 1 . . . 2 . 1 1 . . . 2 1 . . 2 3 2 3 1 1 1 . 4 2 3 2 . . . 4 2 1 4 . 5 5 . 4 5 3 Storage 12 | 1 1 . . . 2 . 1 . . . . . . . . . . . . . . . . 1 . 1 . . 1 . . . . . . 1 2 . 1 . . Processor 13 | . . . . . . . . . . . 1 2 . . . . 1 . . . . . . 1 . 2 . 1 . . . 1 . 1 . 1 . 1 . 1 . Hackware 10 | . . . . . 1 . . . . . . 1 . . . . 2 . . . . . . 1 . . . . . . 1 . . . . 2 2 . . . . Protection 33 | . . . . . 2 1 2 2 . 2 2 1 1 . . 2 1 3 . . . . . 2 1 1 2 . . . 3 . 1 2 . . . . 1 1 . Artifact 1 | . . . . . . . . . . . . . . . . . . . . . . . . . . . . . . . . . . . . . . . . 1 . Weapon 93 | 2 4 . 1 1 7 2 1 1 1 3 . 1 1 4 . 1 3 4 2 1 1 . 1 4 9 4 . . . 3 2 . 2 2 . 1 9 3 3 4 5 Energy Gun 12 | 1 . . . . 1 2 . . . . . 1 . 1 . . . . 1 . . . . 1 . . . . . 1 . . . . . . 2 . . . 1 Energy Cannon 29 | . . . . . 1 . . 1 . . . . . 1 . . . 2 1 . 1 . . 3 3 2 . . . . 2 . 1 2 . 1 3 1 1 . 3 Ballistic Gun 6 | 1 . . . . 1 . . . 1 . . . . . . . . 1 . 1 . . . . . . . . . . . . . . . . . 1 . . . Ballistic Cannon 21 | . 2 . 1 . 1 . . . . 1 . . . . . . 2 1 . . . . . . 4 2 . . . . . . . . . . 3 . 1 2 1 Launcher 14 | . 1 . . 1 2 . . . . 1 . . 1 . . 1 1 . . . . . 1 . 2 . . . . 1 . . . . . . 1 1 . . . Special Weapon 6 | . 1 . . . . . . . . . . . . 2 . . . . . . . . . . . . . . . . . . 1 . . . . . 1 1 . Impact Weapon 4 | . . . . . 1 . . . . 1 . . . . . . . . . . . . . . . . . . . 1 . . . . . . . . . 1 . Slashing Weapon 1 | . . . . . . . 1 . . . . . . . . . . . . . . . . . . . . . . . . . . . . . . . . . . Piercing Weapon . | . . . . . . . . . . . . . . . . . . . . . . . . . . . . . . . . . . . . . . . . . . Special Melee Weapon . | . . . . . . . . . . . . . . . . . . . . . . . . . . . . . . . . . . . . . . . . . . Unidentified Prototypes 49 | . . . . . . . . . . . . . . . . . . 1 . 1 . 1 . 1 9 . . . 4 4 . . . 5 . . 9 1 3 10 . Corrupted Parts 4 | . . . . . . . . . . . . . . . . . 1 . . . . . 1 . 1 . . . . . . . . . . . . 1 . . . System Corruption 17 | . . . . . . . . . . . . . . . . . 3 . . . . . 5 . 6 . . . . . . . . . . . . 3 . . . Parts Lost 102 | . . . . . 4 4 1 1 . 10 . . . 2 . 5 1 10 . . . . . 4 7 2 1 3 . 2 2 3 2 6 . 1 1 1 . 1 28 Power 18 | . . . . . 2 1 1 . . 2 . . . . . . . 2 . . . . . 1 1 . . 1 . . . 1 . 1 . . . . . . 5 Propulsion 28 | . . . . . 1 2 . . . 3 . . . 2 . 1 . 2 . . . . . 2 3 . 1 . . 1 . 1 1 4 . . . . . . 4 Utility 35 | . . . . . 1 1 . . . 4 . . . . . 3 1 3 . . . . . 1 1 1 . 1 . . 2 . 1 1 . 1 1 1 . 1 10 Weapon 21 | . . . . . . . . 1 . 1 . . . . . 1 . 3 . . . . . . 2 1 . 1 . 1 . 1 . . . . . . . . 9 Highest Loss Streak 15 | . . . . . 1 2 1 1 . 4 . . . 2 . 2 1 4 . . . . . 3 3 1 1 2 . 1 1 2 1 6 . 1 1 1 . 1 15 To Critical Strikes 1 | . . . . . . . . . . . . . . . . . . . . . . . . . . . . . . . . . . 1 . . . . . . . Average Backups 22 | 4 13 14 15 14 21 24 24 24 25 24 22 22 22 23 24 22 22 21 23 23 24 24 23 23 22 22 23 23 22 24 24 24 24 24 25 24 22 20 21 22 20 Power 1 | . . . . . . . . 1 1 . . . 1 1 2 2 1 . 1 1 1 1 1 . . . 2 2 1 1 2 1 1 1 1 1 1 1 1 1 1 Propulsion 2 | 2 4 5 5 5 5 7 5 6 6 3 4 3 3 2 2 1 1 2 1 1 1 1 1 2 1 2 1 1 1 . . . . . 1 1 1 1 1 1 . Utility 8 | . 3 4 4 4 4 5 8 8 9 11 9 8 6 6 7 6 7 9 10 10 10 11 10 8 10 8 9 9 9 12 11 11 11 11 10 8 7 6 5 6 8 Weapon 9 | . 4 5 6 5 10 11 10 9 9 8 7 7 9 10 12 9 9 7 7 9 9 8 9 9 8 10 9 9 8 7 9 9 9 11 12 12 11 11 11 11 9 Tool/Special . | . . . . . . . . . . . . . . . . . . . . . . . . . . . . . . . . . . . . . . . . . . Unused Backups 92 | . 5 1 . . 10 2 3 . . . 3 4 2 . . 1 6 1 7 1 1 2 . 8 2 4 1 . 1 . 3 . 1 3 . 4 6 2 . . 8 Power 10 | . . . . . . . . . . . . . . . . 1 . . 2 . . . . . . . . . 1 . 1 . . . . 1 . 2 . . 2 Propulsion 17 | . 2 . . . 4 . 1 . . . 2 1 1 . . . 1 . 2 . . . . . . 1 . . . . . . . . . 1 1 . . . . Utility 47 | . 2 . . . 4 1 2 . . . 1 3 1 . . . 3 . 3 . 1 1 . 4 2 3 . . . . 2 . 1 2 . 1 4 . . . 6 Weapon 18 | . 1 1 . . 2 1 . . . . . . . . . . 2 1 . 1 . 1 . 4 . . 1 . . . . . . 1 . 1 1 . . . . Tool/Special . | . . . . . . . . . . . . . . . . . . . . . . . . . . . . . . . . . . . . . . . . . . Average Slot Usage (%) 89 | . 100 100 85 100 99 100 99 100 100 99 90 91 91 87 84 90 92 87 86 83 85 87 87 89 90 87 86 82 66 83 89 99 98 93 90 89 83 83 78 78 72 Engine 5 | . 14 14 14 14 . . . 9 9 1 . . . 7 7 7 6 12 13 12 12 12 11 7 10 11 11 7 5 5 2 . . . . . . . . . . Core 2 | . . . . . 8 9 8 . . 7 9 7 6 . . . 5 . . . . . . . . . . 2 2 . 5 5 5 2 . . . . . . . Reactor 3 | . . . . . . . . . . . . . . . . . . . . . . . . 3 . . . . 2 5 7 9 10 9 10 9 9 10 12 11 8 Treads 15 | . 28 28 28 28 25 16 8 9 9 18 18 15 15 6 . 12 13 7 6 6 6 6 6 5 16 16 16 16 16 16 19 30 28 25 25 21 15 13 12 11 11 Wheel 5 | . . . . . 10 19 27 26 27 17 9 7 7 11 15 8 6 5 6 6 10 12 11 11 1 . . . . . . . . . . . . . . . . Device 11 | . 14 14 14 14 10 9 8 9 9 9 9 6 15 15 15 14 11 4 6 8 12 12 12 11 12 14 14 10 10 11 9 14 14 13 15 18 21 18 7 7 11 Storage 6 | . 14 14 14 14 9 9 9 9 9 9 9 7 7 7 7 7 6 6 6 6 6 6 6 5 5 5 5 5 5 5 5 5 5 5 5 4 4 4 4 4 4 Processor 9 | . . . . . . . . . . . . 8 7 7 7 7 9 13 13 12 12 12 12 15 16 16 16 16 16 16 15 15 15 15 15 13 13 13 12 12 7 Hackware 3 | . . . . . 7 9 9 9 9 . . 6 . . . . 5 6 6 3 . . . 4 5 2 . . . . 3 . . . . 5 4 9 8 8 7 Protection 5 | . . . . . 8 9 9 9 9 17 18 6 6 7 7 7 4 7 6 6 6 6 6 5 3 4 5 5 5 5 6 5 5 6 5 1 . . 3 3 3 Energy Gun 2 | . 8 . . . 2 1 . . . 5 9 3 6 6 . 12 5 7 1 5 4 . 3 . 1 . . . . 2 . . . . . . . . . . . Energy Cannon 4 | . . . . . 3 3 6 8 8 . . . . . . . . . 1 . 1 6 9 12 10 14 16 15 . 1 5 3 4 4 5 6 8 7 11 3 3 Ballistic Gun 2 | . 8 . . . . 3 . . 1 1 . 7 7 6 . 7 5 3 5 6 6 6 . 1 1 . . . . . . . . . . . . . . . . Ballistic Cannon 7 | . 9 27 . 26 11 8 8 8 8 8 9 7 7 6 . 2 6 5 5 6 4 . 4 1 1 1 . . . 11 9 11 10 7 10 6 4 5 4 12 10 Peak Build Rating 246 | 7 11 11 11 11 36 37 40 40 39 45 49 58 59 59 57 59 68 79 81 84 86 87 91 101 128 128 124 124 129 136 142 145 144 159 150 173 197 196 230 246 238 Average Rating 99 | 5 8 10 8 10 30 34 36 38 38 42 48 55 57 57 55 57 65 73 78 81 84 84 85 96 110 122 122 122 100 127 136 141 139 143 148 163 182 192 223 229 222 On Entrance 89 | . 7 10 8 11 11 34 37 36 39 36 43 49 56 57 55 57 58 67 75 81 84 85 87 86 91 124 122 123 115 129 131 140 143 132 151 149 173 190 194 226 238 Avg Prop Armor Cover (%) 11 | . . . . . 13 13 8 9 8 13 13 13 12 12 . 13 14 11 11 11 10 10 10 9 12 . . . . . . . . 2 . . 5 . . . . Naked Turns . | . . . . . . . . . . . . . . . . . . . . . . . . . . . . . . . . . . . . . . . . . . Heaviest Build 240 | 15 34 34 34 34 107 105 109 113 113 113 110 112 119 120 120 131 142 132 138 132 134 139 144 150 149 156 163 164 152 155 156 154 153 175 172 184 196 199 231 231 240 Greatest Support 255 | 40 40 40 40 40 80 48 48 36 36 36 28 28 28 56 56 56 28 150 28 28 40 40 150 40 177 177 177 177 177 180 203 183 178 180 179 199 215 230 235 255 255 Greatest Overweight (x) 14 | . . . . . 4 4 3 3 3 8 4 3 4 4 2 4 5 4 4 4 4 3 4 11 14 . . . . . . . 1 2 . 1 1 . 1 1 1 Average Overweight (x) 1 | . . . . . 2 3 2 2 2 4 3 3 3 2 2 3 4 3 4 4 3 3 3 3 1 . . . . . . . . . . . . . . . . Largest Inventory Capacity 25 | 8 15 15 15 15 25 25 25 25 25 25 25 25 25 25 25 25 25 25 25 25 25 25 25 25 25 25 25 25 25 25 25 25 25 25 25 25 25 25 25 25 25 Average Capacity 24 | 6 14 15 15 15 22 25 25 25 25 25 25 25 25 25 25 25 25 25 25 25 25 25 25 25 25 25 25 25 25 25 25 25 25 25 25 25 25 25 25 25 24 Most Carried 25 | 7 15 15 15 15 25 25 25 25 25 25 25 25 25 25 25 25 25 25 25 25 25 25 25 25 25 25 25 25 25 25 25 25 25 25 25 25 25 25 25 25 25 Average Carried 23 | 4 13 14 14 14 21 24 24 24 24 24 24 24 24 24 25 23 24 23 24 24 24 24 24 24 23 24 24 24 23 24 24 24 24 24 25 24 24 24 24 24 22 Final Capacity 25 | 8 15 15 15 15 25 25 25 25 25 25 25 25 25 25 25 25 25 25 25 25 25 25 25 25 25 25 25 25 25 25 25 25 25 25 25 25 25 25 25 25 5 Final Carried 25 | 7 15 15 14 15 24 25 25 25 25 24 25 25 25 25 25 25 25 22 25 25 25 25 25 25 25 24 25 25 24 25 25 25 24 25 25 25 25 25 25 25 5 Class Distribution -------------------- 29% | Mutant 19% | Gunner 16% | Tank 12% | Hacker-Gunner 10% | Scavenger-Tank 4% | Scavenger-Gunner Dominant Class ---------------- Mutant | -10/Materials Mutant | -10/Mines Mutant | -10/Exiles Mutant | -9/Mines Mutant | -8/Materials Mutant | -8/Garrison Mutant | -8/Materials Mutant | -8/Garrison Mutant | -8/Materials Mutant | -8/Garrison Mutant | -8/Materials Gunner | -7/Factory Gunner | -7/Lower Caves Gunner | -7/Lower Caves Mutant | -7/Data Miner Gunner | -6/Proximity Caves Gunner | -6/Factory Scavenger-Tank | -6/Garrison Scavenger-Mutant | -6/Factory Tank | -6/Lower Caves Tank | -6/Lower Caves Mutant | -6/Zion Tank | -5/Proximity Caves Scavenger-Tank | -5/Factory Scavenger-Tank | -5/Garrison Tank | -5/Factory Tank | -5/Upper Caves Tank | -5/Upper Caves Mutant | -5/Zhirov Derelict-Tank | -4/Proximity Caves Tank | -4/Factory Gunner | -4/Upper Caves Gunner | -4/Upper Caves Gunner | -4/Warlord Scavenger-Gunner | -3/Proximity Caves Scavenger-Gunner | -3/Research Hacker-Gunner | -3/Testing Hacker-Gunner | -3/Garrison Hacker-Gunner | -2/Research Hacker-Gunner | -2/Quarantine Hacker-Tank | -2/Protoforge Resources | -11 -10 -10 -10 -9 -8 -8 -8 -8 -8 -8 -8 -7 -7 -7 -7 -6 -6 -6 -6 -6 -6 -6 -5 -5 -5 -5 -5 -5 -5 -4 -4 -4 -4 -4 -3 -3 -3 -3 -2 -2 -2 ----------- Run | Yrd Mat Min Exi Min Mat Gar Mat Gar Mat Gar Mat Fac Low Low Dat Pro Fac Gar Fac Low Low Zio Pro Fac Gar Fac Upp Upp Zhi Pro Fac Upp Upp War Pro Res Tes Gar Res Qua Frg Matter Collected 28857 | 232 392 147 . 156 1188 834 528 553 . 917 293 688 417 561 . 571 483 1253 249 100 64 30 353 858 1041 757 147 214 . 2035 1287 887 596 1050 84 965 1666 1620 866 2411 2364 Remotely . | . . . . . . . . . . . . . . . . . . . . . . . . . . . . . . . . . . . . . . . . . . Salvage Created 27898 | 26 361 55 . 62 1112 909 567 777 . 916 243 624 313 392 . 433 169 2409 302 . 22 . 514 1873 2551 2130 289 260 . 631 1292 280 358 484 . 1254 1614 1651 162 1153 1710 Parts 1145 | 4 37 11 . 8 63 41 34 52 . 51 10 29 10 12 . 8 7 72 8 . 2 . 27 63 94 76 10 20 . 24 39 5 11 13 . 67 78 59 3 33 64 Haulers Intercepted 10 | . 1 . . . 1 . . . . . . . . . . . . . . . . . . 2 1 1 . . . . 2 . . . . 1 . . 1 . . Recyclers Shooed 7 | . . . . . . . . . . . . . . . . . . . . . . . . 1 . . . . . . 3 . . . . 2 . . . 1 . Parts Field Recycled . | . . . . . . . . . . . . . . . . . . . . . . . . . . . . . . . . . . . . . . . . . . Retrieved Matter . | . . . . . . . . . . . . . . . . . . . . . . . . . . . . . . . . . . . . . . . . . . Parts Self-Destructed 64 | . . . . . . . . . . . . . 12 5 . 9 . . . 3 2 . 5 . . . . . . 14 . 4 9 . 1 . . . . . . Prevented 65 | . . . . . . . . . . . . . . 6 . . . . . . . . 19 . . . 8 20 . 8 . . . . 4 . . . . . . Parts Restored . | . . . . . . . . . . . . . . . . . . . . . . . . . . . . . . . . . . . . . . . . . . Kills | -11 -10 -10 -10 -9 -8 -8 -8 -8 -8 -8 -8 -7 -7 -7 -7 -6 -6 -6 -6 -6 -6 -6 -5 -5 -5 -5 -5 -5 -5 -4 -4 -4 -4 -4 -3 -3 -3 -3 -2 -2 -2 ------- Run | Yrd Mat Min Exi Min Mat Gar Mat Gar Mat Gar Mat Fac Low Low Dat Pro Fac Gar Fac Low Low Zio Pro Fac Gar Fac Upp Upp Zhi Pro Fac Upp Upp War Pro Res Tes Gar Res Qua Frg Combat Hostiles Destroyed 567 | . 8 6 . 9 28 21 11 26 . 35 6 14 10 10 . 13 8 43 2 . . . 11 18 40 30 4 3 . 16 17 5 13 16 . 18 28 35 1 21 41 Melee 2 | . . . . . . 1 . . . . . . . . . . . . . . . . . . . . . . . . . . . . . . . . . . 1 Guns 64 | . 4 . . . 5 6 . 1 . 8 4 5 6 3 . 8 2 6 1 . . . . 3 2 . . . . . . . . . . . . . . . . Cannons 285 | . 1 . . 3 14 5 8 19 . 15 2 8 1 4 . 2 . 17 1 . . . 4 8 11 18 3 . . 10 14 5 8 9 . 11 17 25 1 14 27 AOE 167 | . 3 6 . 6 9 9 3 6 . 12 . . 3 2 . 3 6 19 . . . . 4 1 21 4 . . . 3 . . 5 7 . 6 5 8 . 6 10 Classes Destroyed 30 | 1 6 . . 1 6 3 . . . . . . . 2 . 1 . . . . . . . . 1 . . . . . . . . 2 . . 2 . . 2 3 Worker 20 | . . . . . 2 . . . . . . . . . . . . . 1 . . . . 6 . 2 . . . . 1 . . . . 6 2 . . . . Builder 18 | . 2 . . . 3 . 1 . . . . 3 . . . . . . . . . . . 3 . 2 . . . . . . . . . 1 1 . . . 2 Tunneler 2 | 1 . . . . 1 . . . . . . . . . . . . . . . . . . . . . . . . . . . . . . . . . . . . Hauler 10 | . 1 . . . 1 . . . . . . . . . . . . . . . . . . 2 1 1 . . . . 2 . . . . 1 . . 1 . . Recycler 14 | . . . . . 1 . 1 . . . 1 . . . . . . . 1 . . . . 2 . 1 . . . . 2 . . . . 4 1 . . . . Carrier 1 | . . . . . . . . . . . . . . . . . . . . . . . . . . . . . . . . . . . . . . . . . 1 Minesweeper 6 | . . . . . . . . . . . . . . 2 . 1 . . . . 1 . . . . . . . . . . . . . 2 . . . . . . Mechanic 3 | . . . . . 1 . . . . . . . . . . . . . . . . . . . 1 . . . . . . . . . . . . . . . 1 Operator 6 | . 1 . . . . . 1 . . . 1 . . . . . . . . . . . . . . . . . . . . . . . . 1 . . . 1 1 Drone 5 | . . . . . . . . . . . . . . . . 2 . . . . . . . . . . . . . 2 . . . . . . . . . . 1 Watcher 15 | . 3 . . . 5 . 2 . . . . 1 . . . . . . 1 . . . . 2 . . . . . . 1 . . . . . . . . . . Swarmer 138 | . 3 6 . 7 6 8 3 10 . 11 3 4 4 . . 3 3 14 . . . . 4 . 12 6 . . . 5 . . 4 2 . 7 . 3 . 5 5 Saboteur 1 | . . . . . . . . . . . . . . . . . . . . . . . . . . . . . . . . . . . . . . . . . 1 Grunt 174 | . 5 . . . 12 6 2 4 . 11 1 7 6 7 . 7 3 18 . . . . 5 6 13 11 . . . . 3 3 4 5 . 3 9 16 . 3 4 Brawler 16 | . . . . . 1 . . 3 . . . . . 1 . . . . . . . . . . 2 . . . . . . . . 4 . . . 1 . . 4 Duelist 15 | . . . . . 2 . 1 1 . 4 1 . . . . . . 1 . . . . . . 1 . . . . . . . . 1 . . . 3 . . . Protector 3 | . . . . . . . . . . . . . . . . . . . . . . . . . 1 . . . . . . . . 1 . . . . . . 1 Researcher 4 | . . . . . . . . . . . . . . . . . . . . . . . . . . . . . . . . . . . . . 2 . . 1 1 Sentry 61 | . . . . . 7 4 5 3 . 3 1 2 . . . 1 1 7 1 . . . 1 3 1 4 1 1 . 1 4 1 . . . 1 . 2 . 3 3 Demolisher 2 | . . . . . . . . . . . . . . . . . . . . . . . . . . . . . . . . . . 1 . . . . 1 . . Specialist 22 | . . . . . . 1 . 2 . 1 . . . . . . . 4 . . . . . . 2 2 . . . 1 . . . . . . 3 3 . . 3 Hunter 50 | . . . . . . 1 . . . . . . . 1 . . . . 1 . . . . 4 7 2 2 1 . 5 6 . 4 . . 2 8 2 . . 4 Programmer 54 | . . . . . . 1 . 3 . 5 . 2 . . . . 1 1 . . . . . 5 1 5 . . . 2 4 . 1 . . 5 4 3 . 6 5 Q-Series 4 | . . . . . . . . . . . . . . . . . . . . . . . . . . . . . . . . . . . . . 3 . . 1 . Behemoth 5 | . . . . . . . . . . . . . . 1 . . . . . . . . 1 . . . . 1 . . . 1 . . . . . 1 . . . Hotshot 9 | . . . . . . . . . . . . . . . . . . . . . . . . . . . . . . . . . . . . . . . . . 9 Overlord 1 | . . . . . . . . . . . . . . . . . . . . . . . . . . . . . . . . . . . . . . . . . 1 Executioner 3 | . . . . . . . . . . . . . . . . . . . . . . . . . . . . . . . . . . 2 . . . 1 . . . Alpha 7 1 | . . . . . . . . . . . . . . . . . . . . . . . . . . . . . . . . . . . . . . . . 1 . Fortress 1 | . . . . . . . . . . . . . . . . . . . . . . . . . . . . . . . . . . . . . . . . 1 . Protovariant X 1 | . . . . . . . . . . . . . . . . . . . . . . . . . . . . . . . . . . . . . 1 . . . . Decomposer 1 | . . . . . . . . . . . . . . . . 1 . . . . . . . . . . . . . . . . . . . . . . . . . Packrat 1 | . . . . . . . . . . . . . . . . . . . . . . . . . . . . . . . . 1 . . . . . . . . . Assembled 2 | . . . . 2 . . . . . . . . . . . . . . . . . . . . . . . . . . . . . . . . . . . . . Butcher 1 | . . . . . . . . . . . . . . . . . . . . . . . . . . . 1 . . . . . . . . . . . . . . Infiltrator 1 | . . . . . . . . . . . . . . . . . . . . . . . . . 1 . . . . . . . . . . . . . . . . Best Kill Streak 14 | 1 5 3 . 4 7 3 4 6 . 5 4 3 4 4 . 4 6 8 2 . 1 . 4 9 14 7 2 1 . 7 3 4 4 13 1 12 7 7 1 6 10 Combat Bots Only 13 | . 4 3 . 4 5 3 3 6 . 5 4 2 4 4 . 4 6 8 1 . . . 4 7 12 6 2 1 . 7 3 4 4 13 . 7 6 7 1 6 9 Max Kills in Single Turn 6 | 1 3 3 . 3 4 3 2 3 . 4 1 2 2 2 . 1 2 3 1 . 1 . 2 3 6 2 1 1 . 2 1 1 2 2 1 4 3 5 1 3 5 Gunslinging . | . . . . . . . . . . . . . . . . . . . . . . . . . . . . . . . . . . . . . . . . . . Exploded 5 | . 3 3 . 3 3 3 2 3 . 4 . . 2 2 . 1 2 3 . . . . 2 1 5 2 . . . 2 . . 2 2 . 3 3 5 . 3 5 Melee 1 | . . . . . . 1 . . . . . . . . . . . . . . . . . . . . . . . . . . . . . . . . . . 1 Uniques/NPCs Destroyed 1 | . . . . . . . . . . . . . . . . . . . . . . . . . . . . . . . . . . . . . . . . 1 . BL-1NK (-2/Quarantine) Combat | -11 -10 -10 -10 -9 -8 -8 -8 -8 -8 -8 -8 -7 -7 -7 -7 -6 -6 -6 -6 -6 -6 -6 -5 -5 -5 -5 -5 -5 -5 -4 -4 -4 -4 -4 -3 -3 -3 -3 -2 -2 -2 -------- Run | Yrd Mat Min Exi Min Mat Gar Mat Gar Mat Gar Mat Fac Low Low Dat Pro Fac Gar Fac Low Low Zio Pro Fac Gar Fac Upp Upp Zhi Pro Fac Upp Upp War Pro Res Tes Gar Res Qua Frg Hostile Shots Fired 3288 | . 24 9 . 9 102 79 38 81 . 187 43 62 14 66 . 99 53 376 34 . 4 . 42 110 139 123 13 24 . 129 133 35 84 71 . 73 143 170 10 148 561 Missed 1003 | . 2 3 . 2 41 22 13 28 . 47 12 22 2 29 . 41 20 132 10 . 2 . 15 29 49 36 2 6 . 52 53 9 27 14 . 16 55 53 4 33 122 Hits 2285 | . 22 6 . 7 61 57 25 53 . 140 31 40 12 37 . 58 33 244 24 . 2 . 27 81 90 87 11 18 . 77 80 26 57 57 . 57 88 117 6 115 439 Melee 66 | . . . . . . . . . . 4 4 . . . . . . . . . . . . . 1 . . . . . . . . 1 . . . 1 1 . 54 Projectile 2219 | . 22 6 . 7 61 57 25 53 . 136 27 40 12 37 . 58 33 244 24 . 2 . 27 81 89 87 11 18 . 77 80 26 57 56 . 57 88 116 5 115 385 AOE 19 | . . . . . . . . . . . . . . . . . . . . . . . . . . . . . . . . . . 8 . . 3 . 2 6 . Critical Strikes 103 | . . . . . 2 1 1 2 . 8 2 . 1 2 . 1 1 6 . . . . 2 4 2 2 . . . 2 1 1 3 4 . 3 3 7 . 3 39 Part Disruptions 7 | . . . . . . . . . . . . . . . . . . 1 . . . . . 1 . 2 . . . 1 . . . . . 1 1 . . . . Damage Taken 40215 | . 294 108 . 112 999 835 380 773 . 2210 385 449 151 697 . 685 497 3209 224 . 42 . 447 1622 1518 1764 218 354 . 1283 1786 792 1009 1972 . 615 1258 1435 173 2208 9711 Core 3841 | . 51 20 . 54 65 47 51 100 . 227 21 13 23 80 . 61 92 233 38 . . . 27 213 60 127 . 52 . 105 191 73 83 179 . 57 41 78 . 208 1171 Absorbed by Shields 9722 | . . . . . . . . . . 109 . . 42 147 . 75 . 118 . . . . 87 123 167 55 . . . . . . . . . 587 1179 1327 170 1137 4399 Reduced by Siege Mode 188 | . . . . . . . . . . . . . . . . . . . . . . . 6 . . . . . . . . . . . . . 8 33 . 79 62 Redirected to Shielding 161 | . . . . . . . . . . . . . . . . . . . . . . . . . . . . . . . 26 . 53 82 . . . . . . . Ignored by Resistances 166 | . . . . . . . . . . 2 42 . . . . 91 5 26 . . . . . . . . . . . . . . . . . . . . . . . Regen/Repaired (Parts) 3456 | . . . . . . . . . . . . . . . . . . . . . . . . 275 . 72 . . . . 220 . . 321 . . . . 37 816 1715 Core Remaining (%) 58 | 100 . . . 50 . . . . . . 7 . . . . 74 . . . . . . 54 . . . . . . 44 . . . . 54 . . 86 . . . Volleys Fired 1605 | 2 47 2 . 6 97 91 28 74 2 104 27 32 23 31 2 46 18 125 7 . 3 . 16 56 102 57 6 7 . 43 62 30 20 21 6 36 114 92 10 47 113 Largest 4 | 2 2 1 . 2 2 2 2 2 1 2 2 3 3 3 1 3 3 3 3 . 2 . 3 3 3 3 3 3 . 3 3 3 3 3 3 3 3 3 4 4 4 Hottest 367 | 70 100 30 . 66 110 110 103 130 90 130 110 145 145 145 5 145 145 145 225 . 123 . 225 237 231 240 240 240 . 216 221 251 221 226 226 262 226 222 312 294 367 Shots Fired 3427 | 4 83 3 . 11 182 162 50 113 2 180 41 81 43 78 2 111 39 277 15 . 4 . 41 155 197 144 20 21 . 109 141 66 48 51 14 82 186 213 21 145 292 Gun 792 | 4 52 . . 1 23 100 . 4 . 63 27 49 20 49 . 94 16 144 6 . 1 . 4 26 79 . . . . 5 . . . . . . . . . . 25 Cannon 2438 | . 21 1 . 8 152 58 48 103 2 105 14 32 21 25 . 8 13 76 9 . 3 . 34 129 94 143 20 21 . 99 141 66 43 45 14 78 184 209 17 140 262 Launcher 150 | . 1 2 . 2 7 4 2 6 . 12 . . 2 4 . 9 10 23 . . . . 3 . 24 1 . . . 5 . . 5 6 . 4 2 4 3 4 5 Special 47 | . 9 . . . . . . . . . . . . . 2 . . 34 . . . . . . . . . . . . . . . . . . . . 1 1 . Kinetic 1612 | 2 47 1 . 8 132 83 26 44 . 89 14 61 31 49 . 45 21 111 6 . 1 . 4 48 46 22 . . . 90 70 44 22 30 8 26 43 91 7 125 165 Thermal 1002 | 2 35 . . 1 12 48 . 48 2 79 27 20 10 22 . 57 8 134 3 . 3 . 7 25 39 . . . . . 60 18 21 15 6 31 80 82 2 8 97 Explosive 124 | . 1 2 . 2 7 4 2 6 . 8 . . 2 2 . 9 10 17 . . . . 3 . 13 1 . . . 2 . . 5 6 . 4 2 4 3 4 5 Electromagnetic 681 | . . . . . 31 27 22 15 . 4 . . . 5 . . . 15 6 . . . 27 82 99 121 20 21 . 17 11 4 . . . 21 61 36 8 7 21 Entropic 4 | . . . . . . . . . . . . . . . . . . . . . . . . . . . . . . . . . . . . . . . . . 4 Robot Hit Streak 48 | 3 10 7 . 9 9 29 16 9 . 15 7 16 8 18 1 19 6 48 7 . 7 . 12 11 36 24 5 13 . 9 23 13 12 15 6 20 38 22 7 19 42 Robot Miss Streak 13 | 1 3 . . 1 4 4 2 3 . 2 2 3 2 2 1 13 4 4 1 . . . 2 3 3 4 2 3 . 4 4 2 2 3 1 3 2 1 1 2 3 Penetration Max 2 | . . . . . . . . . . . . . . . . . . . . . . . . 1 1 . . . . . . . . . . . . . . . 2 Secondary Targets 3 | . 1 . . . . 1 . . . . . . . . . 1 . . . . . . . . . . . . . . . . . . . . . . . . . Max Gunslinging Chain 1 | . 1 . . . . 1 . . . . . . . . . 1 . . . . . . . . . . . . . . . . . . . . . . . . . Shots Hit Robots 2173 | 3 50 1 . 5 105 113 33 50 . 113 27 58 18 67 1 72 16 210 13 . 2 . 30 100 133 89 12 16 . 57 86 40 27 36 8 52 100 143 11 95 181 Core Hits 1232 | 1 22 6 . 11 56 45 20 33 . 49 9 27 15 33 . 39 37 135 6 . 1 . 16 45 116 57 10 9 . 28 33 11 23 34 4 38 47 73 6 43 94 Critical Kills 5 | . . . . . . 1 . . . . . . . . . . . . . . 1 . . . . . . . . . 2 . . . . . . . . . 1 Critical Parts Destroyed 12 | . . . . . . 1 . . . . . 1 . . . . . . . . . . . 2 . . . . . . 1 . . . . . . . . . 7 Critical Strikes 113 | . 4 . . . 5 8 1 . . 4 3 2 1 3 . 1 2 14 . . 1 . 1 7 3 2 . . . 2 6 3 1 3 . . 6 5 1 6 18 Burn 18 | . . . . . . 6 . . . 3 3 . . . . . . 5 . . . . . . 1 . . . . . . . . . . . . . . . . Meltdown 2 | . . . . . . . . . . . . . . . . . . . . . . . . . . . . . . . 2 . . . . . . . . . . Destroy 15 | . . . . . . 2 . . . . . 1 . . . . . . . . 1 . . 1 . . . . . . . . . . . . . . . . 10 Blast 61 | . 4 . . . 5 . 1 . . 1 . 1 1 2 . 1 2 6 . . . . . 1 . . . . . 2 3 3 1 3 . . 6 3 1 6 8 Corrupt 12 | . . . . . . . . . . . . . . 1 . . . . . . . . 1 4 2 2 . . . . . . . . . . . 2 . . . Smash 2 | . . . . . . . . . . . . . . . . . . . . . . . . 1 . . . . . . 1 . . . . . . . . . . Sever 3 | . . . . . . . . . . . . . . . . . . 3 . . . . . . . . . . . . . . . . . . . . . . . Melee Attacks 150 | . . . . . 7 11 20 1 . 8 1 29 1 1 . . 4 27 8 6 2 . . 3 16 . . . . . 2 . . . . . . . . 3 . Kinetic 3 | . . . . . . . . . . . . . . . . . . . . . . . . . . . . . . . . . . . . . . . . 3 . Impact 125 | . . . . . 7 11 7 . . . 1 29 1 1 . . 4 27 8 6 2 . . 3 16 . . . . . 2 . . . . . . . . . . Slashing 22 | . . . . . . . 13 1 . 8 . . . . . . . . . . . . . . . . . . . . . . . . . . . . . . . Piercing . | . . . . . . . . . . . . . . . . . . . . . . . . . . . . . . . . . . . . . . . . . . Sneak Attacks 8 | . . . . . . 1 . . . . 1 2 . . . . . . 1 . . . . 1 . . . . . . 2 . . . . . . . . . . Combat Hostiles . | . . . . . . . . . . . . . . . . . . . . . . . . . . . . . . . . . . . . . . . . . . Follow-up Attacks . | . . . . . . . . . . . . . . . . . . . . . . . . . . . . . . . . . . . . . . . . . . Damage Inflicted 98208 | 36 907 212 . 430 3665 2666 1161 1860 . 4035 758 1559 819 1967 . 2188 1646 6740 454 . 59 . 1243 4135 6838 3689 358 461 . 2710 3861 1647 2152 3603 338 3707 5622 7670 440 5395 13177 Guns 12417 | 36 433 . . 12 291 1466 . 34 . 862 411 718 306 988 . 1188 269 2315 133 . 26 . 75 589 1785 . . . . 105 . . . . . . . . . . 375 Cannons 57004 | . 337 . . 69 2357 623 884 1429 . 2063 273 497 108 614 . 187 133 1575 269 . 33 . 788 2948 1854 3117 358 461 . 1980 3410 1647 782 1369 338 2203 4089 6072 440 4068 9629 Explosions 27233 | . 137 212 . 349 1011 437 277 397 . 1108 . . 405 365 . 813 1244 2528 . . . . 380 514 3199 572 . . . 625 158 . 1370 2234 . 1450 1533 1581 . 1213 3121 Melee 1050 | . . . . . . 140 . . . . 74 344 . . . . . . 52 . . . . 84 . . . . . . 253 . . . . . . . . 103 . Ramming 182 | . . . . . 6 . . . . 2 . . . . . . . . . . . . . . . . . . . . 40 . . . . 54 . 17 . 11 52 Kinetic 35643 | 24 546 . . 69 1919 816 422 702 . 1585 273 887 194 898 . 510 208 1987 100 . 26 . 106 1015 877 342 . . . 1742 1801 1347 307 950 171 820 1104 2912 206 3938 6839 Thermal 20764 | 12 224 . . 12 268 1053 . 596 . 1340 411 328 220 615 . 865 194 2181 64 . 33 . 186 1098 1391 434 . . . 68 1504 147 475 663 167 773 1110 1995 45 42 2250 Explosive 23138 | . 137 212 . 349 882 386 277 397 . 923 . . 405 198 . 813 1244 1733 . . . . 380 . 2127 138 . . . 342 . . 1370 1990 . 1450 1470 1581 . 1213 3121 Electromagnetic 17271 | . . . . . 590 271 462 165 . 185 . . . 256 . . . 839 238 . . . 571 1938 2443 2775 358 461 . 558 263 153 . . . 610 1938 1165 189 191 652 Impact 947 | . . . . . . 140 . . . . 74 344 . . . . . . 52 . . . . 84 . . . . . . 253 . . . . . . . . . . Slashing . | . . . . . . . . . . . . . . . . . . . . . . . . . . . . . . . . . . . . . . . . . . Piercing . | . . . . . . . . . . . . . . . . . . . . . . . . . . . . . . . . . . . . . . . . . . Entropic 263 | . . . . . . . . . . . . . . . . . . . . . . . . . . . . . . . . . . . . . . . . . 263 Highest Corruption 22 | . 2 2 2 2 . 1 1 2 2 12 12 1 1 1 1 1 3 5 5 . . . 5 7 14 16 16 16 16 19 4 4 5 5 . 7 14 22 . 3 15 Average Corruption 6 | . 2 2 2 2 . 1 1 1 2 10 12 1 1 1 1 1 2 2 3 . . . 5 4 12 14 16 16 16 16 3 4 4 5 . 5 10 17 . 2 6 Corruption Purged 8 | . . . . . . . . . . . . . . . . . 3 . 5 . . . . . . . . . . . . . . . . . . . . . . Corruption Blocked . | . . . . . . . . . . . . . . . . . . . . . . . . . . . . . . . . . . . . . . . . . . Effects 840 | . 6 6 3 15 . 4 7 16 . 49 24 2 13 9 . 14 1 27 1 . . . 1 20 78 74 54 48 9 79 7 34 29 . . 7 76 76 . 17 34 Message Errors 209 | . . 2 1 2 . 1 . 7 . 9 3 . 6 1 . 5 1 9 1 . . . 1 5 19 19 18 15 3 19 1 7 5 . . 3 17 20 . 2 7 Matter Fused 201 | . 4 1 2 2 . . 2 3 . 17 6 2 4 2 . 6 . 6 . . . . . 5 15 14 13 11 2 28 2 11 6 . . 1 9 15 . 7 5 Heat Flow Errors 83 | . . 1 . 1 . 1 1 . . 2 3 . 1 2 . . . 1 . . . . . 1 6 7 9 8 1 8 1 4 2 . . 1 6 10 . 4 2 Energy Discharges 92 | . 1 . . 4 . . 2 2 . 7 4 . . 2 . . . 3 . . . . . 2 8 9 3 4 3 7 1 4 2 . . . 8 13 . 1 2 Parts Rejected 6 | . . . . . . . 1 . . . . . . . . . . . . . . . . . . 1 . . . . . 1 1 . . . 1 . . . 1 Parts Fused 14 | . . . . . . . . . . 1 1 . . . . . . 2 . . . . . . 2 3 . 1 . 1 . . 1 . . . 2 . . . . Data Loss (minor) 93 | . 1 1 . 3 . 1 . 2 . 3 4 . 1 1 . 1 . 2 . . . . . 3 7 8 5 5 . 7 1 3 5 . . 2 13 4 . 3 7 Data Loss (major) 30 | . . . . . . 1 . . . 4 1 . 1 . . 1 . . . . . . . 1 2 3 2 . . 2 1 2 3 . . . 1 4 . . 1 Misfires 42 | . . 1 . 2 . . . . . 3 1 . . 1 . . . 2 . . . . . . 7 4 2 3 . 3 . 2 3 . . . 4 4 . . . Alerts 21 | . . . . 1 . . 1 1 . . . . . . . . . 1 . . . . . 1 5 2 2 . . 2 . . 1 . . . 2 . . . 2 Misdirections 3 | . . . . . . . . . . . 1 . . . . . . . . . . . . . . . . . . . . . . . . . 1 . . . 1 Weapon Failures 46 | . . . . . . . . 1 . 3 . . . . . 1 . 1 . . . . . 2 7 4 . 1 . 2 . . . . . . 12 6 . . 6 Overload Shots 1 | . . . . . . . . . . . . . . . . . . 1 . . . . . . . . . . . . . . . . . . . . . . . Overflow Damage 2835 | . 5 . . 3 109 57 33 5 . 91 37 190 42 33 . 3 22 76 23 . . . 23 165 46 123 3 . . 97 282 29 82 118 26 246 120 118 4 140 484 Projectiles 1121 | . 5 . . 3 92 . 33 5 . 67 3 4 . 20 . . . 21 23 . . . . 60 8 37 3 . . 48 92 29 27 4 26 46 55 46 4 86 274 Explosions 1201 | . . . . . 17 38 . . . 24 . . 42 13 . 3 22 55 . . . . 23 21 38 86 . . . 49 . . 55 114 . 200 65 72 . 54 210 Melee 513 | . . . . . . 19 . . . . 34 186 . . . . . . . . . . . 84 . . . . . . 190 . . . . . . . . . . Knockbacks 196 | . 7 . . . 17 2 5 4 . 13 6 2 1 2 . . 1 7 . . . . . 7 . 1 . . . 3 10 . 4 3 . 3 8 12 1 25 52 Impact 4 | . . . . . . . . . . . 1 . . . . . . . . . . . . 1 . . . . . . 1 . . . . 1 . . . . . Kinetic 179 | . 7 . . . 16 2 5 4 . 13 4 2 1 2 . . 1 7 . . . . . 6 . 1 . . . 3 7 . 4 3 . 2 7 12 1 25 44 Secondary 13 | . . . . . 1 . . . . . 1 . . . . . . . . . . . . . . . . . . . 2 . . . . . 1 . . . 8 Self-Inflicted Damage 1969 | . 39 61 . 54 53 69 9 36 . 196 . . . . . 12 . 461 . . . . . . 96 354 . . . . 159 . . 73 . . 71 226 . . . Shots 53 | . 1 2 . 2 4 2 1 1 . 7 . . . . . 1 . 15 . . . . . . 3 6 . . . . 3 . . 1 . . 1 3 . . . Rammed 12 | . . . . . 1 . . . . 1 . . . . . . . . . . . . . . . . . . . . 1 . . . . 4 . 2 . 1 2 Targets Rammed 12 | . . . . . 1 . . . . 1 . . . . . . . . . . . . . . . . . . . . 1 . . . . 4 . 2 . 1 2 Kicked . | . . . . . . . . . . . . . . . . . . . . . . . . . . . . . . . . . . . . . . . . . . Crushed . | . . . . . . . . . . . . . . . . . . . . . . . . . . . . . . . . . . . . . . . . . . Highest Temperature 513 | 18 144 200 . 175 189 137 143 69 50 292 242 92 79 171 . 324 147 370 132 . 36 . 429 351 388 362 384 382 115 419 261 235 323 226 42 145 266 217 246 310 513 Average Temperature 69 | 10 29 106 . 45 35 20 42 16 28 44 47 32 14 29 . 70 59 98 64 . 17 . 122 90 78 63 112 99 58 77 69 59 65 32 19 47 48 76 107 106 131 Received Heat Transfer 8323 | . 138 . . 20 459 297 135 234 . 722 108 153 15 102 . 232 183 829 36 . 18 . 311 306 270 290 9 48 . 6 132 60 60 226 . 20 44 185 . 229 2446 Effects 21 | . . . . . . . . . . 2 . . . . . 1 . 9 . . . . . 2 1 2 . 2 . . . . . . . . . 1 . . 1 Shutdowns 1 | . . . . . . . . . . . . . . . . . . 1 . . . . . . . . . . . . . . . . . . . . . . . Energy Bleed 2 | . . . . . . . . . . . . . . . . 1 . . . . . . . . . . . . . . . . . . . . . 1 . . . Interference 14 | . . . . . . . . . . 2 . . . . . . . 8 . . . . . . . 2 . 2 . . . . . . . . . . . . . Matter Decay 1 | . . . . . . . . . . . . . . . . . . . . . . . . . . . . . . . . . . . . . . . . . 1 Short Circuit 2 | . . . . . . . . . . . . . . . . . . . . . . . . 2 . . . . . . . . . . . . . . . . . Damage (minor) 1 | . . . . . . . . . . . . . . . . . . . . . . . . . 1 . . . . . . . . . . . . . . . . Siege Activations 12 | . . . . . . . . . . . . . . . . . . . . . . . 1 . . . . 1 . . . . . . . . 1 4 . 4 1 Total Turns 273 | . . . . . . . . . . . . . . . . . . . . . . . 9 . . . . 14 . . . . . . . . 8 73 . 156 13 Longest Duration 49 | . . . . . . . . . . . . . . . . . . . . . . . 9 . . . . 14 . . . . . . . . 8 36 . 49 13 Martial Activations . | . . . . . . . . . . . . . . . . . . . . . . . . . . . . . . . . . . . . . . . . . . Shielding Activations . | . . . . . . . . . . . . . . . . . . . . . . . . . . . . . . . . . . . . . . . . . . Robots Disrupted 1 | . . . . . . . . . . . . . . . . . . . . . . . . . 1 . . . . . . . . . . . . . . . . Combat Hostiles 1 | . . . . . . . . . . . . . . . . . . . . . . . . . 1 . . . . . . . . . . . . . . . . Robots Corrupted 53 | . . . . . . . . . . . 1 2 . 1 . . . 1 1 . . . 3 8 6 9 1 3 . 3 2 . . . . 1 6 2 . . 3 Combat Hostiles 46 | . . . . . . . . . . . . 1 . 1 . . . 1 . . . . 3 6 6 8 1 3 . 3 1 . . . . 1 6 2 . . 3 Parts Fried 168 | . . . . . 4 . 3 2 . . 1 7 . 2 . . . 8 3 . . . 3 16 24 41 6 6 . 6 2 . . . . 3 23 3 . 1 4 Impact Corruptions 18 | . . . . . . 1 . . . . 2 7 . . . . . . . . . . . 2 . . . . . . 5 . . . . . . . . . 1 Robots Melted 3 | . . . . . . 1 . . . . . . . . . . . . . . . . . . . . . . . . 2 . . . . . . . . . . Combat Hostiles 2 | . . . . . . . . . . . . . . . . . . . . . . . . . . . . . . . 2 . . . . . . . . . . Parts Melted 24 | . . . . . . 2 2 3 . 2 1 . 1 1 . . 1 4 . . . . . 1 . . . . . . 5 . 1 . . . . . . . . Heat Transferred 24906 | 37 666 . . 37 322 2209 . 900 . 2219 888 608 500 1324 . 1854 400 4932 150 . 37 . 261 955 1793 400 . . . 50 1432 148 481 250 . . 50 . 37 7 1959 Parts Sabotaged . | . . . . . . . . . . . . . . . . . . . . . . . . . . . . . . . . . . . . . . . . . . Parts Stolen . | . . . . . . . . . . . . . . . . . . . . . . . . . . . . . . . . . . . . . . . . . . Parts Stripped 18 | . . . . . . . . . . . . . . . . . . . . . . . . . . . . . . . . . . . . . . . . 18 . Power Chain Reactions 20 | . . . . . 1 1 . . . 1 . . . . . . . 2 . . . . . 3 3 6 . . . 1 . . . 1 . . 1 . . . . Alert | -11 -10 -10 -10 -9 -8 -8 -8 -8 -8 -8 -8 -7 -7 -7 -7 -6 -6 -6 -6 -6 -6 -6 -5 -5 -5 -5 -5 -5 -5 -4 -4 -4 -4 -4 -3 -3 -3 -3 -2 -2 -2 ------- Run | Yrd Mat Min Exi Min Mat Gar Mat Gar Mat Gar Mat Fac Low Low Dat Pro Fac Gar Fac Low Low Zio Pro Fac Gar Fac Upp Upp Zhi Pro Fac Upp Upp War Pro Res Tes Gar Res Qua Frg Maximum Alert Level 5 | . . . . . 1 3 2 4 3 5 3 1 . . . . 3 5 3 . . . . 1 5 5 . . . . 2 . . . . 1 2 5 4 2 3 Low Security (%) 38 | 100 100 100 . 100 84 9 . . . . . 96 . . . . . . . . . . . 73 . . . . . . 84 . . . . 70 37 . . 77 25 Level 1 12 | . . . . . 15 31 62 11 . . 11 3 . . . . 3 5 51 . . . . 26 3 . . . . . 9 . . . . 29 25 . . 19 18 Level 2 14 | . . . . . . 27 37 14 30 8 65 . . . . . 58 37 . . . . . . 22 . . . . . 6 . . . . . 36 4 5 2 30 Level 3 18 | . . . . . . 31 . 17 70 56 23 . . . . . 37 20 48 . . . . . 34 39 . . . . . . . . . . . 17 79 . 24 Level 4 10 | . . . . . . . . 55 . 29 . . . . . . . 22 . . . . . . 20 49 . . . . . . . . . . . 25 14 . . Level 5 5 | . . . . . . . . . . 5 . . . . . . . 14 . . . . . . 19 8 . . . . . . . . . . . 52 . . . High Security . | . . . . . . . . . . . . . . . . . . . . . . . . . . 3 . . . . . . . . . . . . . . . Max Security . | . . . . . . . . . . . . . . . . . . . . . . . . . . . . . . . . . . . . . . . . . . Peak Influence 2100 | 5 102 89 . 114 259 1004 603 1558 759 1695 826 212 . . . . 900 1963 1030 . . . . 363 2090 1727 . . . . 428 . . . . 334 641 2100 1181 427 968 Initial 1181 | . . 12 . . 41 129 489 245 759 434 826 212 . . . . 900 260 1030 . . . . 19 257 1096 . . . . 23 . . . . . 178 475 1181 427 114 Average 542 | . 32 20 . 7 78 535 411 1026 717 1047 531 136 . . . . 648 946 610 . . . . 109 1076 1202 . . . . 90 . . . . 124 331 1485 903 129 477 Influence Increases 22726 | 5 358 158 . 191 959 915 568 1323 10 1361 227 544 274 285 . 255 1122 1883 84 . 5 . 280 711 1923 1351 70 80 . 340 820 155 305 335 10 672 1046 1695 211 747 1448 Destroy 0b10 Robot/C 11720 | . 160 120 . 140 580 420 300 520 . 700 120 320 220 200 . 220 160 940 40 . . . 220 360 840 600 60 60 . 280 340 100 260 300 . 360 600 880 60 420 820 Destroy 0b10 Robot/NC 600 | 5 35 . . . 70 15 25 . . . 10 25 . 10 . 15 . 25 15 . 5 . . 75 50 30 . . . 20 30 . . 5 10 65 20 . 5 5 30 Destroy Leader 1716 | . 48 20 . 20 152 30 94 20 . 50 30 62 30 30 . 20 20 70 22 . . . 30 98 70 142 10 20 . 40 106 10 30 . . 80 80 80 12 40 150 Allied During Kill 290 | . . . . 14 4 . 24 . . . . 19 9 . . . . 62 . . . . . . 30 . . . . . . . . . . . . 107 21 . . Trap Triggered on 0b10 10 | . . . . . . . . . . . . . . . . . 10 . . . . . . . . . . . . . . . . . . . . . . . . Successful Hack 305 | . 16 . . . 6 12 21 12 8 . 4 60 . . . . 14 12 . . . . . 10 24 . . . . . 36 . . . . 12 6 10 26 6 10 Select Force Hacks 90 | . 30 . . . . . 60 . . . . . . . . . . . . . . . . . . . . . . . . . . . . . . . . . . Disable Machine 1140 | . 15 . . . 45 45 . 30 . 30 60 . . . . . . 30 . . . . . 45 60 210 . . . . 75 . . . . . 165 30 45 150 105 Anti-Garrison Action 2650 | . . . . . . 350 . 600 . 350 . . . . . . . 550 . . . . . . 450 . . . . . . . . . . . . 350 . . . Destroy Structure 2345 | . 9 18 . 17 72 28 44 96 2 81 3 28 . . . . 18 134 7 . . . . 48 309 294 . . . . 218 . . . . 140 160 178 27 126 288 Advance Influence 900 | . . . . . . . . . . . . . . . . . 900 . . . . . . . . . . . . . . . . . . . . . . . . Partial Spotted 90 | . . . . . 15 . . . . . . . . . . . . . . . . . . . 30 . . . . . 15 . . . . . . . 15 . 15 Lose Combat Pursuer 870 | . 45 . . . 15 15 . 45 . 150 . 30 15 45 . . . 60 . . . . 30 75 60 75 . . . . . 45 15 30 . 15 15 60 . . 30 Influence Decreases 21890 | 5 325 191 . 83 868 110 1195 142 899 335 1455 843 422 305 . 255 750 292 1807 240 5 . 248 375 201 1714 1144 619 114 303 445 567 253 156 241 354 730 229 1550 1303 817 Entered New Map 8254 | . . 21 . . 67 70 515 132 799 235 869 255 63 4 . . . 112 933 89 . . . 13 111 994 640 125 114 . 14 153 . 52 231 . 140 159 919 334 91 Time Decay 10150 | 5 325 170 . 83 610 . 440 . 100 . 286 568 359 301 . 245 440 . 254 151 5 . 248 322 . 550 494 464 . 283 409 404 243 44 10 194 580 . 571 546 446 Search Patrol Dispatched 300 | . . . . . . . . . . . . . . . . . 300 . . . . . . . . . . . . . . . . . . . . . . . . Lost Part 922 | . . . . . 40 40 10 10 . 100 . . . . . 10 10 100 . . . . . 40 70 20 10 30 . 20 12 10 10 60 . 10 10 10 . 10 280 Lost Ally 351 | . . . . . 1 . 80 . . . . 20 . . . . . 80 20 . . . . . 20 . . . . . 10 . . . . . . 60 60 . . Purge Threat 1913 | . . . . . 150 . 150 . . . 300 . . . . . . . 600 . . . . . . 150 . . . . . . . . . 150 . . . 413 . Squads Dispatched 68 | . 3 . . . 1 . 3 . . . 1 4 . . . . 2 . 1 . . . . 5 . 15 . . . . 4 . . . . 2 11 . . 6 10 Investigation 9 | . 2 . . . . . 2 . . . . 1 . . . . . . . . . . . 1 . 1 . . . . 1 . . . . . 1 . . . . Extermination 25 | . . . . . . . . . . . . 3 . . . . 1 . 1 . . . . 3 . 2 . . . . 3 . . . . 1 5 . . 4 2 Reinforcement 21 | . 1 . . . . . 1 . . . 1 . . . . . 1 . . . . . . 1 . 8 . . . . . . . . . 1 2 . . 2 3 Assault 11 | . . . . . . . . . . . . . . . . . . . . . . . . . . 4 . . . . . . . . . . 3 . . . 4 Garrison 2 | . . . . . 1 . . . . . . . . . . . . . . . . . . . . . . . . . . . . . . . . . . . 1 Intercept . | . . . . . . . . . . . . . . . . . . . . . . . . . . . . . . . . . . . . . . . . . . Searches Triggered 3 | . . . . . . . . . . . . . . . . . 3 . . . . . . . . . . . . . . . . . . . . . . . . Unchained Authorized 1 | . . . . . . . . . . . . . . . . . . . . . . . . . . . . . . . . . . . . . . . . 1 . Data Miner Redirects 7 | . . . . . . . . . . . . . . . . . . . . . . . . 1 . 1 . . . . . . . . . . 3 . . . 2 Construction Impeded 2 | . . . . . . . . . . . . . . . . . . . . . . . . . . . . . . . . . . . . 1 . . . . 1 Haulers Reinforced 4 | . . . . . . . . . . . . . . . . . 1 . . . . . . 1 . 2 . . . . . . . . . . . . . . . Active Scanning Responses . | . . . . . . . . . . . . . . . . . . . . . . . . . . . . . . . . . . . . . . . . . . Cargo Convoy Interrupts . | . . . . . . . . . . . . . . . . . . . . . . . . . . . . . . . . . . . . . . . . . . Stealth | -11 -10 -10 -10 -9 -8 -8 -8 -8 -8 -8 -8 -7 -7 -7 -7 -6 -6 -6 -6 -6 -6 -6 -5 -5 -5 -5 -5 -5 -5 -4 -4 -4 -4 -4 -3 -3 -3 -3 -2 -2 -2 --------- Run | Yrd Mat Min Exi Min Mat Gar Mat Gar Mat Gar Mat Fac Low Low Dat Pro Fac Gar Fac Low Low Zio Pro Fac Gar Fac Upp Upp Zhi Pro Fac Upp Upp War Pro Res Tes Gar Res Qua Frg Distress Signals 19 | . . . . . 5 . 3 . . . . 1 . . . 1 . . . . . . . 1 1 . . . . . 1 . . . . 1 1 . 4 . . Communications Jammed 120 | . . . . . . . . . . . . . . . . . . . . . . . . 5 56 8 . . . 10 41 . . . . . . . . . . Distress Signals 117 | . . . . . . . . . . . . . . . . . . . . . . . . 4 56 7 . . . 9 41 . . . . . . . . . . Times Spotted 835 | . 16 6 . 9 49 20 19 27 . 45 14 21 11 11 . 17 17 49 8 . 3 . 12 33 47 46 4 3 . 19 31 8 14 53 . 22 41 50 22 28 60 Peak Tracking Total 15 | . 4 3 . 4 5 3 4 8 . 4 5 3 4 5 . 4 7 6 3 . 4 . 5 5 10 6 2 1 . 6 6 5 3 15 . 5 4 7 4 8 9 Tactical Retreats 43 | . 3 . . . 1 1 . 2 . 7 . 2 1 2 . . . 2 . . . . 2 3 3 4 . . . . . 1 1 2 . 1 1 2 . . 2 Traps | -11 -10 -10 -10 -9 -8 -8 -8 -8 -8 -8 -8 -7 -7 -7 -7 -6 -6 -6 -6 -6 -6 -6 -5 -5 -5 -5 -5 -5 -5 -4 -4 -4 -4 -4 -3 -3 -3 -3 -2 -2 -2 ------- Run | Yrd Mat Min Exi Min Mat Gar Mat Gar Mat Gar Mat Fac Low Low Dat Pro Fac Gar Fac Low Low Zio Pro Fac Gar Fac Upp Upp Zhi Pro Fac Upp Upp War Pro Res Tes Gar Res Qua Frg Traps Triggered 38 | . 2 . . . 2 4 . 5 . 5 . 1 . . . . . 3 . . . . . 2 4 1 . . . . 1 . . . . . 1 3 . . 4 Indirectly 1 | . . . . . . . . . . . . . . . . . . . . . . . . . 1 . . . . . . . . . . . . . . . . Trap Hack Attempts . | . . . . . . . . . . . . . . . . . . . . . . . . . . . . . . . . . . . . . . . . . . Triggered . | . . . . . . . . . . . . . . . . . . . . . . . . . . . . . . . . . . . . . . . . . . Disarmed . | . . . . . . . . . . . . . . . . . . . . . . . . . . . . . . . . . . . . . . . . . . Reprogrammed . | . . . . . . . . . . . . . . . . . . . . . . . . . . . . . . . . . . . . . . . . . . Reused 1 | . . . . . . . . . . . . . . . . . 1 . . . . . . . . . . . . . . . . . . . . . . . . Traps Extracted . | . . . . . . . . . . . . . . . . . . . . . . . . . . . . . . . . . . . . . . . . . . Installed 5 | . . 3 . . . . . . . . . . . . . . 2 . . . . . . . . . . . . . . . . . . . . . . . . Triggered 1 | . . . . . . . . . . . . . . . . . 1 . . . . . . . . . . . . . . . . . . . . . . . . Most Traps Carried 2 | . . 1 . . . . . . . . . . . . . 2 2 . . . . . . . . . . . . . . . . . . . . . . . . Machines | -11 -10 -10 -10 -9 -8 -8 -8 -8 -8 -8 -8 -7 -7 -7 -7 -6 -6 -6 -6 -6 -6 -6 -5 -5 -5 -5 -5 -5 -5 -4 -4 -4 -4 -4 -3 -3 -3 -3 -2 -2 -2 ---------- Run | Yrd Mat Min Exi Min Mat Gar Mat Gar Mat Gar Mat Fac Low Low Dat Pro Fac Gar Fac Low Low Zio Pro Fac Gar Fac Upp Upp Zhi Pro Fac Upp Upp War Pro Res Tes Gar Res Qua Frg Machines Disabled 118 | . 1 . . . 3 9 . 13 . 6 4 . . . . . . 7 . . . . . 3 10 14 . . . . 5 . . . . . 12 8 3 11 9 Max in Single Turn 6 | . 1 . . . 1 2 . 2 . 1 1 . . . . . . 1 . . . . . 1 2 6 . . . . 4 . . . . . 1 1 1 3 2 Garrison Access 7 | . . . . . . . . . . . . 2 . . . . . . . . . . . . . . . . . . 1 . . . . 1 . . 2 1 . Garrison Relay 32 | . . . . . . 5 . 9 . 4 . . . . . . . 5 . . . . . . 4 . . . . . . . . . . . . 5 . . . Phase Generator 2 | . . . . . . . . 1 . . . . . . . . . . . . . . . . 1 . . . . . . . . . . . . . . . . Machines Repaired . | . . . . . . . . . . . . . . . . . . . . . . . . . . . . . . . . . . . . . . . . . . Machines Dismantled . | . . . . . . . . . . . . . . . . . . . . . . . . . . . . . . . . . . . . . . . . . . Machines Sabotaged . | . . . . . . . . . . . . . . . . . . . . . . . . . . . . . . . . . . . . . . . . . . Overloaded Fab Kills . | . . . . . . . . . . . . . . . . . . . . . . . . . . . . . . . . . . . . . . . . . . Hacking | -11 -10 -10 -10 -9 -8 -8 -8 -8 -8 -8 -8 -7 -7 -7 -7 -6 -6 -6 -6 -6 -6 -6 -5 -5 -5 -5 -5 -5 -5 -4 -4 -4 -4 -4 -3 -3 -3 -3 -2 -2 -2 --------- Run | Yrd Mat Min Exi Min Mat Gar Mat Gar Mat Gar Mat Fac Low Low Dat Pro Fac Gar Fac Low Low Zio Pro Fac Gar Fac Upp Upp Zhi Pro Fac Upp Upp War Pro Res Tes Gar Res Qua Frg Machines Accessed 137 | . 7 . 1 . 12 3 13 2 3 2 3 14 1 . 4 . 5 1 2 1 1 . 1 8 2 5 4 . 5 . 7 . . 4 1 5 10 1 2 3 4 Terminals 78 | . 6 . . . 10 3 9 2 2 2 3 9 . . . . 1 1 . . . . 1 5 2 1 1 . . . 3 . . . 1 1 8 1 2 2 2 Fabricators 9 | . . . . . . . . . . . . 1 . . . . 3 . 1 . . . . 1 . . . . . . 1 . . . . 2 . . . . . Repair Stations 5 | . . . . . . . . . . . . . . . . . . . . . . . . 1 . 2 . . . . 1 . . . . . . . . . 1 Recycling Units 3 | . 1 . . . . . 2 . . . . . . . . . . . . . . . . . . . . . . . . . . . . . . . . . . Scanalyzers 8 | . . . . . 1 . 1 . . . . 1 . . . . . . . . . . . . . 1 . . . . 1 . . . . 1 1 . . . 1 Garrison Access 14 | . . . . . 1 . 1 . 1 . . 3 . . . . 1 . 1 . . . . 1 . 1 . . . . 1 . . . . 1 1 . . 1 . Total Hacks 340 | . 16 . 4 . 32 5 25 3 9 3 9 32 7 . 32 . 9 1 2 1 1 . 1 13 3 6 6 . 17 . 14 . . 14 1 14 25 3 6 19 7 Successful 206 | . 8 . 4 . 18 1 19 1 6 . 4 14 7 . 32 . 5 1 . 1 1 . 1 4 2 3 6 . 17 . 7 . . 14 1 6 6 1 2 9 5 Failed 133 | . 7 . . . 14 4 6 2 3 3 5 18 . . . . 4 . 2 . . . . 9 1 3 . . . . 7 . . . . 8 19 2 4 10 2 Catastrophic 27 | . 1 . . . 1 1 . 1 . 2 1 4 . . . . 1 . 2 . . . . 3 . 2 . . . . . . . . . . 4 1 . 3 . Database Lockouts 1 | . 1 . . . . . . . . . . . . . . . . . . . . . . . . . . . . . . . . . . . . . . . . Manual 116 | . 12 . . . 15 1 14 . 5 . 2 20 . . . . 5 . 1 . . . . 8 1 2 . . . . 8 . . 1 . 1 5 1 . 10 4 Terminals 193 | . 15 . . . 25 5 19 3 8 3 9 21 . . . . 2 1 . . . . 1 10 3 2 1 . . . 8 . . . 1 3 22 3 6 17 5 Fabricators 15 | . . . . . . . . . . . . 2 . . . . 6 . 1 . . . . 1 . . . . . . 2 . . . . 3 . . . . . Repair Stations 5 | . . . . . . . . . . . . . . . . . . . . . . . . 1 . 2 . . . . 1 . . . . . . . . . 1 Recycling Units 4 | . 1 . . . . . 3 . . . . . . . . . . . . . . . . . . . . . . . . . . . . . . . . . . Scanalyzers 21 | . . . . . 6 . 2 . . . . 3 . . . . . . . . . . . . . 1 . . . . 1 . . . . 6 1 . . . 1 Garrison Access 21 | . . . . . 1 . 1 . 1 . . 6 . . . . 1 . 1 . . . . 1 . 1 . . . . 2 . . . . 2 2 . . 2 . Terminal Hacks 137 | . 5 . 4 . 9 1 6 1 3 . 3 2 7 . 32 . 1 1 . 1 1 . 1 1 2 1 6 . 17 . 1 . . 14 1 1 3 1 2 6 3 Record 41 | . . . 4 . . . . . . . . . 7 . 11 . . . . . . . 1 . . . 4 . 5 . . . . 8 1 . . . . . . Part Schematic 16 | . 2 . . . . . . . . . . . . . 10 . . . . . . . . . . . . . 4 . . . . . . . . . . . . Robot Schematic 8 | . . . . . . . . . . . . . . . 8 . . . . . . . . . . . . . . . . . . . . . . . . . . Robot Analysis 6 | . 1 . . . 1 . . . . . . . . . . . . . . . . . . . . . . . 4 . . . . . . . . . . . . Prototype ID Bank 18 | . 1 . . . 2 . . . . . . . . . 3 . 1 . . . . . . . . . . . 4 . . . . 5 . . 1 . . 1 . Open Door 6 | . . . . . . . . . . . . . . . . . . . . 1 1 . . . . . 2 . . . . . . 1 . . 1 . . . . Level Access Points 1 | . . . . . . . . . . . . . . . . . . . . . . . . . . . . . . . . . . . . . . . 1 . . Branch Access Points 2 | . . . . . . . . . . . . 1 . . . . . . . . . . . . . . . . . . 1 . . . . . . . . . . Emergency Access Points 3 | . . . . . . . . . . . . . . . . . . 1 . . . . . . 1 . . . . . . . . . . . . 1 . . . Alert Level 6 | . . . . . . . 2 . 1 . . . . . . . . . . . . . . . . . . . . . . . . . . . 1 . . 1 1 Unreport Threat 9 | . . . . . 1 . 1 . . . 2 . . . . . . . . . . . . . . 1 . . . . . . . . . 1 . . . 3 . Locate Traps 4 | . 1 . . . 2 . . . 1 . . . . . . . . . . . . . . . . . . . . . . . . . . . . . . . . Hauler Manifests 2 | . . . . . 1 . 1 . . . . . . . . . . . . . . . . . . . . . . . . . . . . . . . . . . Registered Components 2 | . . . . . . . 1 . . . . . . . . . . . . . . . . . . . . . . . . . . . . . . . 1 . . Zone Layout 10 | . . . . . 2 . 1 . 1 . 1 1 . . . . . . . . . . . 1 . . . . . . . . . . . . . . . 1 2 Garrison Registry 2 | . . . . . . 1 . 1 . . . . . . . . . . . . . . . . . . . . . . . . . . . . . . . . . Patrol Navigation 1 | . . . . . . . . . . . . . . . . . . . . . . . . . 1 . . . . . . . . . . . . . . . . Fabricator Hacks 2 | . . . . . . . . . . . . . . . . . 1 . . . . . . . . . . . . . . . . . . 1 . . . . . Network Status 1 | . . . . . . . . . . . . . . . . . . . . . . . . . . . . . . . . . . . . 1 . . . . . Build 1 | . . . . . . . . . . . . . . . . . 1 . . . . . . . . . . . . . . . . . . . . . . . . Repair Station Hacks . | . . . . . . . . . . . . . . . . . . . . . . . . . . . . . . . . . . . . . . . . . . Recycling Unit Hacks 1 | . . . . . . . 1 . . . . . . . . . . . . . . . . . . . . . . . . . . . . . . . . . . Report Inventory 1 | . . . . . . . 1 . . . . . . . . . . . . . . . . . . . . . . . . . . . . . . . . . . Scanalyzer 12 | . . . . . 5 . 2 . . . . 1 . . . . . . . . . . . . . 1 . . . . 1 . . . . 2 . . . . . Insert Component 5 | . . . . . 3 . 1 . . . . . . . . . . . . . . . . . . . . . . . . . . . . 1 . . . . . Analyze 2 | . . . . . 2 . . . . . . . . . . . . . . . . . . . . . . . . . . . . . . . . . . . . Retrieve Study 5 | . . . . . . . 1 . . . . 1 . . . . . . . . . . . . . 1 . . . . 1 . . . . 1 . . . . . Garrison Access Hacks 11 | . . . . . 1 . 1 . 1 . . 2 . . . . 1 . . . . . . 1 . . . . . . 1 . . . . 1 1 . . 1 . Unlock Access 6 | . . . . . 1 . 1 . 1 . . . . . . . 1 . . . . . . 1 . . . . . . . . . . . . 1 . . . . Seal Access 5 | . . . . . . . . . . . . 2 . . . . . . . . . . . . . . . . . . 1 . . . . 1 . . . 1 . Unauthorized Hacks 43 | . 3 . . . 3 . 9 . 2 . 1 9 . . . . 2 . . . . . . 2 . 1 . . . . 4 . . . . 1 2 . . 2 2 Terminals 32 | . 2 . . . 3 . 7 . 2 . 1 8 . . . . . . . . . . . 1 . . . . . . 3 . . . . . 2 . . 2 1 Track 2 | . . . . . . . . . . . . . . . . . . . . . . . . . . . . . . . . . . . . . 1 . . . 1 Assimilate 3 | . . . . . 1 . . . . . . 1 . . . . . . . . . . . . . . . . . . 1 . . . . . . . . . . Botnet 10 | . 1 . . . 1 . 1 . 1 . 1 1 . . . . . . . . . . . 1 . . . . . . 1 . . . . . 1 . . 1 . Operators 7 | . 1 . . . 1 . 1 . 1 . . 1 . . . . . . . . . . . . . . . . . . 1 . . . . . . . . 1 . Skim 10 | . . . . . . . 5 . . . . 5 . . . . . . . . . . . . . . . . . . . . . . . . . . . . . Fabricators 4 | . . . . . . . . . . . . 1 . . . . 2 . . . . . . . . . . . . . . . . . . 1 . . . . . Haulers 4 | . . . . . . . . . . . . 1 . . . . 2 . . . . . . . . . . . . . . . . . . 1 . . . . . Repair Stations 3 | . . . . . . . . . . . . . . . . . . . . . . . . 1 . 1 . . . . 1 . . . . . . . . . . Patch 3 | . . . . . . . . . . . . . . . . . . . . . . . . 1 . 1 . . . . 1 . . . . . . . . . . Recycling Units 3 | . 1 . . . . . 2 . . . . . . . . . . . . . . . . . . . . . . . . . . . . . . . . . . Tunnel 3 | . 1 . . . . . 2 . . . . . . . . . . . . . . . . . . . . . . . . . . . . . . . . . . Scanalyzers 1 | . . . . . . . . . . . . . . . . . . . . . . . . . . . . . . . . . . . . . . . . . 1 Researchers 1 | . . . . . . . . . . . . . . . . . . . . . . . . . . . . . . . . . . . . . . . . . 1 Garrison Access . | . . . . . . . . . . . . . . . . . . . . . . . . . . . . . . . . . . . . . . . . . . Data Cores Recovered 4 | . . . . . . . 1 . . . . . . . . . . . . . . . . . . . . . . . . . . . . 1 . . . 1 1 Used . | . . . . . . . . . . . . . . . . . . . . . . . . . . . . . . . . . . . . . . . . . . Hacking Detections 83 | . 5 . . . 8 3 5 1 2 2 3 13 . . . . 5 1 2 . . . . 6 1 3 . . . . 4 . . . . 3 7 1 2 3 3 Full Trace Events 3 | . . . . . . . . . . 1 . 1 . . . . . . . . . . . . . . . . . . . . . . . . 1 . . . . Feedback Events . | . . . . . . . . . . . . . . . . . . . . . . . . . . . . . . . . . . . . . . . . . . Feedback Blocked . | . . . . . . . . . . . . . . . . . . . . . . . . . . . . . . . . . . . . . . . . . . Robot Schematics Acquired 8 | . . . . . . . . . . . . . . . 8 . . . . . . . . . . . . . . . . . . . . . . . . . . Robots Built . | . . . . . . . . . . . . . . . . . . . . . . . . . . . . . . . . . . . . . . . . . . Authchips . | . . . . . . . . . . . . . . . . . . . . . . . . . . . . . . . . . . . . . . . . . . Time 152 | . . . . . . . . . . . . . . . . . 152 . . . . . . . . . . . . . . . . . . . . . . . . Total Robot Build Rating . | . . . . . . . . . . . . . . . . . . . . . . . . . . . . . . . . . . . . . . . . . . Part Schematics Acquired 23 | . 2 . . . 1 . . . . . . . . . 10 . . . . . . . . . . . . . 4 . . . . . . . 4 . . 2 . Parts Built . | . . . . . . . . . . . . . . . . . . . . . . . . . . . . . . . . . . . . . . . . . . Authchips . | . . . . . . . . . . . . . . . . . . . . . . . . . . . . . . . . . . . . . . . . . . Time . | . . . . . . . . . . . . . . . . . . . . . . . . . . . . . . . . . . . . . . . . . . Total Part Build Rating . | . . . . . . . . . . . . . . . . . . . . . . . . . . . . . . . . . . . . . . . . . . Part Studies Acquired 5 | . . . . . . . 1 . . . . 1 . . . . . . . . . . . . . 1 . . . . 1 . . . . 1 . . . . . Parts Repaired . | . . . . . . . . . . . . . . . . . . . . . . . . . . . . . . . . . . . . . . . . . . Time . | . . . . . . . . . . . . . . . . . . . . . . . . . . . . . . . . . . . . . . . . . . Parts Recycled . | . . . . . . . . . . . . . . . . . . . . . . . . . . . . . . . . . . . . . . . . . . Recycled Matter . | . . . . . . . . . . . . . . . . . . . . . . . . . . . . . . . . . . . . . . . . . . Retrieved Matter . | . . . . . . . . . . . . . . . . . . . . . . . . . . . . . . . . . . . . . . . . . . Retrieved Components . | . . . . . . . . . . . . . . . . . . . . . . . . . . . . . . . . . . . . . . . . . . Parts Scanalyzed 1 | . . . . . 1 . . . . . . . . . . . . . . . . . . . . . . . . . . . . . . . . . . . . Part Schematics Acquired 1 | . . . . . 1 . . . . . . . . . . . . . . . . . . . . . . . . . . . . . . . . . . . . Parts Damaged 1 | . . . . . 1 . . . . . . . . . . . . . . . . . . . . . . . . . . . . . . . . . . . . Bothacking | -11 -10 -10 -10 -9 -8 -8 -8 -8 -8 -8 -8 -7 -7 -7 -7 -6 -6 -6 -6 -6 -6 -6 -5 -5 -5 -5 -5 -5 -5 -4 -4 -4 -4 -4 -3 -3 -3 -3 -2 -2 -2 ------------ Run | Yrd Mat Min Exi Min Mat Gar Mat Gar Mat Gar Mat Fac Low Low Dat Pro Fac Gar Fac Low Low Zio Pro Fac Gar Fac Upp Upp Zhi Pro Fac Upp Upp War Pro Res Tes Gar Res Qua Frg Used RIF Installer . | . . . . . . . . . . . . . . . . . . . . . . . . . . . . . . . . . . . . . . . . . . Robots Hacked 3 | . . . . . . . . . . . . . . . 1 . . . . . . . . . . . . . . . . . . . . . . . 1 1 . Non-combat . | . . . . . . . . . . . . . . . . . . . . . . . . . . . . . . . . . . . . . . . . . . Combat 3 | . . . . . . . . . . . . . . . 1 . . . . . . . . . . . . . . . . . . . . . . . 1 1 . Robot Hacks Applied 3 | . . . . . . . . . . . . . . . 1 . . . . . . . . . . . . . . . . . . . . . . . 1 1 . parse_system 3 | . . . . . . . . . . . . . . . 1 . . . . . . . . . . . . . . . . . . . . . . . 1 1 . Relay Couplers Released 140 | . . . . . . 20 . 34 . 16 . . . . . . . 21 . . . . . 4 16 . . . . . . . . . . . . 21 4 . 4 Machine Destruction 129 | . . . . . . 20 . 34 . 16 . . . . . . . 18 . . . . . . 16 . . . . . . . . . . . . 21 4 . . Programmers 11 | . . . . . . . . . . . . . . . . . . 3 . . . . . 4 . . . . . . . . . . . . . . . . 4 Fabnet Peak Effective % . | . . . . . . . . . . . . . . . . . . . . . . . . . . . . . . . . . . . . . . . . . . Robots Rewired 16 | . . . . . . 3 . . . . . 3 . . . . . 6 . . . . . . . . . . . . . . . . . . . 4 . . . Allies Hacked . | . . . . . . . . . . . . . . . . . . . . . . . . . . . . . . . . . . . . . . . . . . Hacks Repelled . | . . . . . . . . . . . . . . . . . . . . . . . . . . . . . . . . . . . . . . . . . . Allies | -11 -10 -10 -10 -9 -8 -8 -8 -8 -8 -8 -8 -7 -7 -7 -7 -6 -6 -6 -6 -6 -6 -6 -5 -5 -5 -5 -5 -5 -5 -4 -4 -4 -4 -4 -3 -3 -3 -3 -2 -2 -2 -------- Run | Yrd Mat Min Exi Min Mat Gar Mat Gar Mat Gar Mat Fac Low Low Dat Pro Fac Gar Fac Low Low Zio Pro Fac Gar Fac Upp Upp Zhi Pro Fac Upp Upp War Pro Res Tes Gar Res Qua Frg Total Allies 31 | . . . . 3 . 3 . . . . . 4 2 . . . . 6 . . . . . . 2 . 3 . . . 1 . . . . . . 7 . . . Largest Group 6 | . . . . 3 3 1 3 . . . . 3 3 1 1 1 . 6 . . . . . . 2 . 3 . . . 1 . . . . . . 4 4 . . Highest-Rated Group 239 | . . . . 40 40 16 48 . . . . 49 72 10 10 10 . 239 . . . . . . 142 . 75 . . . 24 . . . . . . 224 224 . . Highest-Rated Ally 95 | . . . . 16 16 16 16 . . . . 21 31 10 10 10 . 43 . . . . . . 80 . 25 . . . 24 . . . . . . 95 56 . . Initial Warlord ECA Mod 49 | . . . . . . . 9 9 25 25 33 32 32 32 32 31 31 30 39 37 37 37 36 36 35 44 43 43 43 42 42 42 42 42 41 41 41 41 49 49 49 Warlord Squad Rendezvous 5 | . . . . . . . . . . . . . . . . . 1 . 2 . . . . 1 . 1 . . . . . . . . . . . . . . . Muscle 2 | . . . . . . . . . . . . . . . . . . . 1 . . . . 1 . . . . . . . . . . . . . . . . . Geek 3 | . . . . . . . . . . . . . . . . . 1 . 1 . . . . . . 1 . . . . . . . . . . . . . . . Total Orders 24 | . . . . . . . 7 . . . . 2 6 6 . . . . 3 . . . . . . . . . . . . . . . . . . . . . . STAY 9 | . . . . . . . . . . . . 1 4 4 . . . . . . . . . . . . . . . . . . . . . . . . . . . FOLLOW 6 | . . . . . . . 1 . . . . 1 2 2 . . . . . . . . . . . . . . . . . . . . . . . . . . . EXPLORE 9 | . . . . . . . 6 . . . . . . . . . . . 3 . . . . . . . . . . . . . . . . . . . . . . Ally Attacks 222 | . . . . 1 17 . 51 . . . . 35 22 . . . . 16 . . . . . . 18 . . . . . . . . . . . . 41 21 . . Total Damage 6074 | . . . . . 196 . 483 . . . . 451 317 . . . . 640 . . . . . . 629 . . . . . . . . . . . . 2320 1038 . . Kills 29 | . . . . . 1 . 4 . . . . 4 1 . . . . 4 . . . . . . 4 . . . . . . . . . . . . 9 2 . . Allies Corrupted 1 | . . . . . . . . . . . . . . . . . . . . . . . . . . . . . . . . . . . . . . 1 . . . Allies Melted 1 | . . . . . . . . . . . . . . . . . . . . . . . . . . . . . . . . . . . . . . . 1 . . Intel | -11 -10 -10 -10 -9 -8 -8 -8 -8 -8 -8 -8 -7 -7 -7 -7 -6 -6 -6 -6 -6 -6 -6 -5 -5 -5 -5 -5 -5 -5 -4 -4 -4 -4 -4 -3 -3 -3 -3 -2 -2 -2 ------- Run | Yrd Mat Min Exi Min Mat Gar Mat Gar Mat Gar Mat Fac Low Low Dat Pro Fac Gar Fac Low Low Zio Pro Fac Gar Fac Upp Upp Zhi Pro Fac Upp Upp War Pro Res Tes Gar Res Qua Frg Active Infowar (turns) 39868 | 45 1236 798 347 1085 1368 . 338 3 93 . . 118 1654 1483 113 1934 329 . . 1465 1445 269 958 1369 1931 1651 1306 1177 262 1732 1432 1640 1268 1289 1226 735 1790 1626 1734 1695 924 Optics 24786 | . . . . . . . . . . . . . . . . . . . . . . . . 1368 1931 1651 1306 1177 262 1732 1432 1640 1268 1289 1226 735 1790 1626 1734 1695 924 IFF 13162 | . . . . . . . . . . . . . 1654 1483 113 1934 329 . . 1465 1445 269 958 22 . . 1186 1025 . 1279 . . . . . . . . . . . Zeronet 640 | . . . . . . . . . . . . . . . . . . . . . . . . . . . . . . . . . . . . . . . . 592 48 Terrain 8394 | . . . . . . . . . . . . . . . . . . . . . . . . . . 937 857 . . . 527 1479 1180 610 1226 640 938 . . . . Structural 1746 | . 45 . . . 1267 . 338 3 93 . . . . . . . . . . . . . . . . . . . . . . . . . . . . . . . . Traps 3 | . . . . . . . . . . . . . . . . . . . . . . . . . . . 2 . . . 1 . . . . . . . . . . Seismic 4074 | 45 1191 798 347 1085 608 . . . . . . . . . . . . . . . . . . . . . . . . . . . . . . . . . . . . Decoding 1 | . . . . . . . . . . . . . . . . . . . . . . . . . . . . . . . . 1 . . . . . . . . . Cloaking 1 | . . . . . . . . . . . . . . . . . . . . . . . . . . . . . . . . . . . . 1 . . . . . Spoofing 1 | . . . . . . . . . . . . . . . . . . . . . . . . . 1 . . . . . . . . . . . . . . . . Jamming 13252 | . . . . . . . . . . . . 118 . . . . . . . . . . . 635 1604 1637 1306 1177 262 1732 1326 1564 1268 623 . . . . . . . Robot Analysis Total 6 | . 1 . . . 1 . . . . . . . . . . . . . . . . . . . . . . . 4 . . . . . . . . . . . . Derelict Logs Recovered 23 | . . 1 . 1 . . . . . . . . 1 2 . 2 . . . 2 3 2 2 . . . 3 1 . 1 . 2 . . . . . . . . . Drone Launches 8 | . . . . . . . 5 . . . . . . . . . . . 3 . . . . . . . . . . . . . . . . . . . . . . Drone Recoveries 4 | . . . . . . . 3 . . . . . . . . . . . 1 . . . . . . . . . . . . . . . . . . . . . . Exploration | -11 -10 -10 -10 -9 -8 -8 -8 -8 -8 -8 -8 -7 -7 -7 -7 -6 -6 -6 -6 -6 -6 -6 -5 -5 -5 -5 -5 -5 -5 -4 -4 -4 -4 -4 -3 -3 -3 -3 -2 -2 -2 ------------- Run | Yrd Mat Min Exi Min Mat Gar Mat Gar Mat Gar Mat Fac Low Low Dat Pro Fac Gar Fac Low Low Zio Pro Fac Gar Fac Upp Upp Zhi Pro Fac Upp Upp War Pro Res Tes Gar Res Qua Frg Turns Passed 54017 | 113 1236 798 347 1085 3170 1388 1083 1201 200 1451 633 1710 1709 1691 122 2053 1093 2110 549 1467 1445 1118 1176 1369 1931 1651 1306 1177 262 1732 1432 1640 1268 1289 1226 735 1790 1715 1734 1695 1117 Spaces Moved 30013 | 51 626 483 216 592 1742 689 748 472 151 733 350 1015 1142 1231 93 1295 595 970 311 928 1056 849 790 772 766 820 772 689 145 928 711 1014 675 635 724 300 865 908 1015 763 383 Core 4 | 4 . . . . . . . . . . . . . . . . . . . . . . . . . . . . . . . . . . . . . . . . . Treads 14673 | 47 626 483 216 592 687 . . . . . . . . . . . . 2 . . . . 3 . 670 820 772 689 145 928 711 1014 675 635 724 300 865 908 1015 763 383 Legs . | . . . . . . . . . . . . . . . . . . . . . . . . . . . . . . . . . . . . . . . . . . Wheels 15336 | . . . . . 1055 689 748 472 151 733 350 1015 1142 1231 93 1295 595 968 311 928 1056 849 787 772 96 . . . . . . . . . . . . . . . . Hover . | . . . . . . . . . . . . . . . . . . . . . . . . . . . . . . . . . . . . . . . . . . Flight . | . . . . . . . . . . . . . . . . . . . . . . . . . . . . . . . . . . . . . . . . . . Fastest Speed 50 | 50 160 160 160 160 120 120 110 110 110 125 140 135 135 105 120 120 150 135 150 150 130 130 130 130 140 163 163 163 163 160 150 150 150 151 165 161 145 145 150 150 150 Average Speed 149 | 151 160 160 160 160 153 145 113 124 123 140 144 135 141 123 120 144 156 149 150 150 134 130 131 134 191 163 163 163 163 162 157 150 171 178 165 177 151 147 156 165 155 Slowest Speed 330 | 160 160 160 160 160 160 150 135 125 125 200 145 145 150 150 120 150 165 160 150 150 150 130 160 245 330 163 163 163 163 163 160 150 231 325 166 250 233 150 233 233 232 Overloaded Moves . | . . . . . . . . . . . . . . . . . . . . . . . . . . . . . . . . . . . . . . . . . . Propulsion Burnouts . | . . . . . . . . . . . . . . . . . . . . . . . . . . . . . . . . . . . . . . . . . . Robots Hopped . | . . . . . . . . . . . . . . . . . . . . . . . . . . . . . . . . . . . . . . . . . . Potential Cave-ins 5 | . . . . . . . . . . . . . . . . . . . . . . . . . . . . . . . . . . . . . 1 . . . 4 Cave-ins Triggered 1 | . . . . . . . . . . . . . . . . . . . . . . . . . . . . . . . . . . . . . . . . . 1 Teleports 1 | . . . . . . . . . . . . . . . . . . . . . . . . . . . . . . . . . . . . . . . . . 1 Exploration Rate (%) 66 | 4 81 96 59 99 93 71 80 66 28 77 31 30 98 97 71 97 16 73 12 96 97 85 94 30 86 20 93 87 61 91 20 81 78 83 90 17 83 89 45 73 17 Regions Visited 41 Branch Regions 22 Pre-discovered Areas 22 | . 1 1 1 . . . 5 . . . . 3 2 . 1 . . . . 1 . 1 1 . . . 1 1 3 . . . . . . . . . . . . Known Exits Taken 19 | . . . . . 1 . 1 . 1 . 1 1 . . . 1 1 . 1 1 1 . 1 1 . 1 1 . . 1 1 . . . . 1 1 . 1 . . Unknown Exits Taken 16 | 1 1 1 1 1 . . . . . . . . 1 1 1 . . . . . . 1 . . . . . 1 1 . . 1 1 1 1 . . . . 1 . Scrap Searched 40 | . . 1 . 2 . . . . . . . . 2 5 . 2 . . . 5 3 3 1 . . . 3 2 . 3 . 3 2 . 3 . . . . . . Spaces Dug 625 | . 9 11 . 15 34 15 39 25 2 42 . 21 7 1 . 8 5 57 7 5 3 . . 3 35 20 . . . 31 8 10 . 24 1 31 34 65 1 34 22 Terrain Destroyed 1938 | . 9 18 . 22 72 31 46 106 2 83 2 26 17 23 . 38 18 123 7 5 4 . 19 22 210 155 . . . 77 120 23 102 56 6 79 79 139 8 65 126 Melee 94 | . . . . . 4 3 17 1 . 1 . 20 1 1 . . 4 17 7 5 2 . . 2 9 . . . . . . . . . . . . . . . . Projectile 454 | . 9 . . . 18 . 10 1 2 1 2 6 6 1 . 1 2 1 . . 2 . . 15 9 14 . . . 43 46 23 17 13 6 17 55 46 4 22 62 AOE 1390 | . . 18 . 22 50 28 19 104 . 81 . . 10 21 . 37 12 105 . . . . 19 5 192 141 . . . 34 74 . 85 43 . 62 24 93 4 43 64 Terrain Rammed . | . . . . . . . . . . . . . . . . . . . . . . . . . . . . . . . . . . . . . . . . . . Walls Destroyed . | . . . . . . . . . . . . . . . . . . . . . . . . . . . . . . . . . . . . . . . . . . Machines Disabled . | . . . . . . . . . . . . . . . . . . . . . . . . . . . . . . . . . . . . . . . . . . Actions | -11 -10 -10 -10 -9 -8 -8 -8 -8 -8 -8 -8 -7 -7 -7 -7 -6 -6 -6 -6 -6 -6 -6 -5 -5 -5 -5 -5 -5 -5 -4 -4 -4 -4 -4 -3 -3 -3 -3 -2 -2 -2 --------- Run | Yrd Mat Min Exi Min Mat Gar Mat Gar Mat Gar Mat Fac Low Low Dat Pro Fac Gar Fac Low Low Zio Pro Fac Gar Fac Upp Upp Zhi Pro Fac Upp Upp War Pro Res Tes Gar Res Qua Frg Total 35708 | 79 758 505 217 717 2049 908 895 959 163 951 436 1243 1196 1333 100 1388 718 1307 368 992 1071 863 884 967 1010 994 802 723 174 1046 897 1076 735 744 737 437 1230 1153 1151 1082 650 Wait 1796 | 13 48 9 . 107 88 37 45 349 3 15 26 71 9 31 2 21 31 61 3 39 1 . 43 27 21 41 4 13 . 26 49 9 12 15 4 28 101 94 63 175 62 Move 29976 | 50 625 482 215 591 1742 688 748 471 151 732 349 1014 1141 1230 92 1294 595 969 310 927 1055 848 789 772 765 819 771 688 144 927 710 1013 674 634 723 299 865 906 1014 762 382 Hop . | . . . . . . . . . . . . . . . . . . . . . . . . . . . . . . . . . . . . . . . . . . Pick Up 394 | 7 16 1 . 2 35 10 7 2 2 11 9 15 3 5 . 8 17 11 14 4 2 5 4 23 21 15 3 3 7 7 15 4 3 17 . 12 24 6 13 11 20 Fast Attach 161 | 7 . . . . 5 . 4 . . 3 3 3 2 2 . . 7 7 . 1 1 . . 6 6 4 5 2 5 2 8 4 1 9 1 8 17 9 9 15 5 Attach 135 | . . . 1 . 8 4 2 1 . 9 . 5 . 2 . 6 4 13 1 1 . . 2 8 9 4 1 2 4 2 5 3 1 3 . 3 6 1 5 5 14 Detach 37 | . . 1 . . . . . . . . 1 2 . 1 . . 1 3 1 1 . . . 1 2 3 1 1 4 . 1 1 . . . . 4 1 . 6 1 Swap 788 | . 13 5 1 10 39 29 28 20 3 25 7 21 12 25 4 11 21 28 15 9 4 5 25 47 34 39 5 5 2 32 28 10 21 24 1 27 54 20 14 32 33 Drop 425 | . 9 2 . 1 27 7 13 1 2 3 13 14 5 5 . 2 18 12 9 4 3 5 5 24 23 12 6 2 8 6 16 2 3 19 2 20 45 12 23 25 17 Fire 1605 | 2 47 2 . 6 97 91 28 74 2 104 27 32 23 31 2 46 18 125 7 . 3 . 16 56 102 57 6 7 . 43 62 30 20 21 6 36 114 92 10 47 113 Melee 150 | . . . . . 7 11 20 1 . 8 1 29 1 1 . . 4 27 8 6 2 . . 3 16 . . . . . 2 . . . . . . . . 3 . Ram 1 | . . . . . 1 . . . . . . . . . . . . . . . . . . . . . . . . . . . . . . . . . . . . Kick . | . . . . . . . . . . . . . . . . . . . . . . . . . . . . . . . . . . . . . . . . . . Crush 11 | . . . . . . . . . . 1 . . . . . . . . . . . . . . . . . . . . 1 . . . . 4 . 2 . 1 2 Escape Stasis 139 | . . . . . . 24 . 40 . 40 . . . . . . . 24 . . . . . . 10 . . . . . . . . . . . . . . . 1 Rewire 84 | . . . . . . 7 . . . . . 37 . . . . . 27 . . . . . . 1 . . . . 1 . . . 1 . . . 10 . . . Trap 5 | . . 3 . . . . . . . . . . . . . . 2 . . . . . . . . . . . . . . . . . . . . . . . . Miscellaneous 1 | . . . . . . . . . . . . . . . . . . . . . . . . . . . . . . . . . . 1 . . . . . . . Route ------- -11/Scrapyard -10/Materials (discovered 3 exits: [*Mat x2] / [*Min]) -10/Mines (discovered 3 exits: [*Mat] / *Exi / [*Sub]) -10/Exiles -9/Mines (discovered 2 exits: *Mat x2) -8/Materials (discovered 3 exits: *Fac x2 / Gar) -8/Garrison (discovered 4 exits: *Fac x3 / *Mat) -8/Materials (discovered 4 exits: *Fac x3 / Gar) -8/Garrison (discovered 3 exits: *Mat x3) -8/Materials (discovered 2 exits: *Fac / Gar) -8/Garrison (discovered 3 exits: *Mat x3) -8/Materials -7/Factory (discovered 5 exits: *Fac / *Sto x2 / *Low x2) -7/Lower Caves -7/Lower Caves (discovered 2 exits: *Fac / *Dat) -7/Data Miner -6/Proximity Caves -6/Factory (discovered 3 exits: Low x2 / Gar) -6/Garrison (discovered 3 exits: *Fac x3) -6/Factory -6/Lower Caves -6/Lower Caves (discovered 2 exits: *Fac / *Zio) -6/Zion -5/Proximity Caves -5/Factory (discovered 3 exits: *Fac x2 / Gar) -5/Garrison (discovered 2 exits: *Fac x2) -5/Factory -5/Upper Caves -5/Upper Caves -5/Zhirov -4/Proximity Caves -4/Factory (discovered 5 exits: *Res / *Upp x2 / Ext x2) -4/Upper Caves -4/Upper Caves -4/Warlord -3/Proximity Caves -3/Research (discovered 2 exits: Arm / *Tes) -3/Testing (discovered 2 exits: *Res / Gar) -3/Garrison (discovered 3 exits: *Res x3) -2/Research (discovered 4 exits: *Acc x3 / *Qua) -2/Quarantine (discovered 2 exits: [*Sec] / *Frg) -2/Protoforge (discovered 1 exit: *Acc) History --------- Turn | Location | Event 8 | -11/Scrapyard | Discovered new exit (range 15) 114 | -11/Scrapyard | Entered Materials 314 | -10/Materials | Build established: Mutant 609 | -10/Materials | Discovered new exit (range 16) 643 | -10/Materials | Discovered new exit (range 15) 798 | -10/Materials | Central database locked down 941 | -10/Materials | Discovered new exit (range 14) 1350 | -10/Materials | Entered Mines 1352 | -10/Mines | Discovered new exit (range 6) 1392 | -10/Mines | Met a Derelict bent on vengeance 1412 | -10/Mines | Learned location of Storage (-7) 1817 | -10/Mines | Found a hidden stash of uninstalled traps 1860 | -10/Mines | Deemed a non-threat by the Exiles lab entrance 1862 | -10/Mines | Discovered new exit (range 5) 2025 | -10/Mines | Learned Materials stockpile data 2025 | -10/Mines | Discovered new exit (range 12) 2148 | -10/Mines | Entered Exiles 2187 | -10/Exiles | Met 8R-AWN 2216 | -10/Exiles | Met EX-HEX 2260 | -10/Exiles | Met EX-BIN 2280 | -10/Exiles | Met EX-DEC 2292 | -10/Exiles | Learned location of Zion (-6) 2478 | -10/Exiles | Discovered new exit (range 11) 2495 | -10/Exiles | Entered Mines 2566 | -9/Mines | Learned 2 Materials zone layouts 2668 | -9/Mines | Assembled infested the area 3188 | -9/Mines | Received a Rocket Launcher from a helpful Derelict 3231 | -9/Mines | Discovered new exit (range 16) 3336 | -9/Mines | Assisted by bots powering up and referring to "LRC-V3" 3543 | -9/Mines | Discovered new exit (range 15) 3580 | -9/Mines | Entered Materials 3580 | -8/Materials | Accompanied by 3 allies 3580 | -8/Materials | Evolved 4 slots: Propulsion x2, Utility x2 3581 | -8/Materials | Identified exit to Factory 5214 | -8/Materials | Discovered exit to Factory (range 14) 6390 | -8/Materials | Garrison activated, responded to threat 6750 | -8/Materials | Identified exit to Garrison 6750 | -8/Materials | Entered Garrison 6766 | -8/Garrison | Triggered checkpoint 6782 | -8/Garrison | Discovered new exit (range 6) 6862 | -8/Garrison | Triggered checkpoint 6888 | -8/Garrison | Garrison Relay disabled 6999 | -8/Garrison | Triggered checkpoint 7152 | -8/Garrison | Triggered checkpoint 7192 | -8/Garrison | Discovered exit to Factory (range 18) 7192 | -8/Garrison | Discovered exit to Factory (range 64) 7192 | -8/Garrison | Discovered exit to Factory (range 77) 7192 | -8/Garrison | Discovered new exit (range 27) 7203 | -8/Garrison | Garrison Relay disabled 7313 | -8/Garrison | Triggered checkpoint 7389 | -8/Garrison | Triggered checkpoint 7457 | -8/Garrison | Triggered checkpoint 7598 | -8/Garrison | Triggered checkpoint 7620 | -8/Garrison | Garrison Relay disabled 7703 | -8/Garrison | Triggered checkpoint 7823 | -8/Garrison | Triggered checkpoint 7855 | -8/Garrison | Garrison Relay disabled 8138 | -8/Garrison | Entered Materials 8138 | -8/Materials | Accompanied by 3 allies 8605 | -8/Materials | Learned Factory security intel 8723 | -8/Materials | Learned Factory terminal intel 8743 | -8/Materials | Learned Factory interactive machine intel 8802 | -8/Materials | Learned Storage stockpile data 9221 | -8/Materials | Identified exit to Garrison 9221 | -8/Materials | Entered Garrison 9257 | -8/Garrison | Triggered checkpoint 9303 | -8/Garrison | Garrison Relay disabled 9519 | -8/Garrison | Discovered new exit (range 8) 9534 | -8/Garrison | Discovered new exit (range 74) 9534 | -8/Garrison | Discovered new exit (range 6) 9534 | -8/Garrison | Discovered new exit (range 65) 9541 | -8/Garrison | Triggered checkpoint 9571 | -8/Garrison | Garrison Relay disabled 9675 | -8/Garrison | Garrison Relay disabled 9679 | -8/Garrison | Garrison Relay disabled 9681 | -8/Garrison | Garrison Relay disabled 9689 | -8/Garrison | Garrison Relay disabled 9769 | -8/Garrison | Triggered checkpoint 9825 | -8/Garrison | Triggered checkpoint 9828 | -8/Garrison | Garrison Relay disabled 9929 | -8/Garrison | Triggered checkpoint 9963 | -8/Garrison | Garrison Relay disabled 9967 | -8/Garrison | Garrison Relay disabled 10019 | -8/Garrison | Phase Generator disabled 10019 | -8/Garrison | Spotted B-75 Beast 10422 | -8/Garrison | Entered Materials 10573 | -8/Materials | Discovered exit to Factory (range 6) 10622 | -8/Materials | Identified exit to Garrison 10622 | -8/Materials | Entered Garrison 10686 | -8/Garrison | Core integrity fell below 50% 10796 | -8/Garrison | System corruption reached 10% 10830 | -8/Garrison | Lost 4 parts (1p1n1u1w) 10963 | -8/Garrison | Spotted B-75 Beast 11268 | -8/Garrison | Triggered checkpoint 11309 | -8/Garrison | Garrison Relay disabled 11371 | -8/Garrison | Discovered new exit (range 14) 11437 | -8/Garrison | Triggered checkpoint 11452 | -8/Garrison | Triggered checkpoint 11516 | -8/Garrison | Triggered checkpoint 11564 | -8/Garrison | Garrison Relay disabled 11648 | -8/Garrison | Discovered new exit (range 12) 11722 | -8/Garrison | Triggered checkpoint 11738 | -8/Garrison | Core integrity fell below 20% 11862 | -8/Garrison | Discovered new exit (range 16) 11992 | -8/Garrison | Triggered checkpoint 12018 | -8/Garrison | Garrison Relay disabled 12073 | -8/Garrison | Entered Materials 12670 | -8/Materials | Discovered exit to Factory (range 11) 12706 | -8/Materials | Entered Factory 12706 | -7/Factory | Evolved 2 slots: Utility x1, Weapon x1 12708 | -7/Factory | Loaded intel: 52 interactive machine locations 12709 | -7/Factory | Loaded intel: 26 terminal locations 13249 | -7/Factory | Discovered new exit (range 9) 13644 | -7/Factory | Discovered new exit (range 16) 13665 | -7/Factory | Identified exit to Factory 13781 | -7/Factory | Learned location of Proximity Caves (-6) 13831 | -7/Factory | Learned 2 Extension zone layouts 13872 | -7/Factory | Learned 2 Extension zone layouts 13891 | -7/Factory | Identified exit to Storage 13901 | -7/Factory | Learned Factory interactive machine intel 13922 | -7/Factory | Learned Hub_04(d) trap positions 13959 | -7/Factory | Learned location of Proximity Caves (-5) 13994 | -7/Factory | Learned location of Lower Caves (-7) 14039 | -7/Factory | Learned Hub_04(d) trap positions 14297 | -7/Factory | Identified exit to Lower Caves 14416 | -7/Factory | Entered Lower Caves 14416 | -7/Lower Caves | Accompanied by 1 ally 14422 | -7/Lower Caves | Met a Warlord Commander 14423 | -7/Lower Caves | Learned location of Warlord (-4) 14424 | -7/Lower Caves | Warlord Commander delivered Encrypted Comm Array 14428 | -7/Lower Caves | Found Encrypted Comm Array 14561 | -7/Lower Caves | A Commander dispatched an escort 14563 | -7/Lower Caves | Learned location of Armory (-3) 14563 | -7/Lower Caves | Learned location of 1 exit from Factory 14563 | -7/Lower Caves | Learned Extension trap positions 14563 | -7/Lower Caves | Learned Factory security intel 14563 | -7/Lower Caves | Learned Armory garrison access intel 14697 | -7/Lower Caves | Build established: Gunner 15069 | -7/Lower Caves | Learned location of 1 exit from Factory 15508 | -7/Lower Caves | Encountered a Warlord checkpoint 15667 | -7/Lower Caves | Discovered new exit (range 13) 16125 | -7/Lower Caves | Entered another Lower Caves area 16125 | -7/Lower Caves | Accompanied by 1 ally 16125 | -7/Lower Caves | Discovered exit to Factory (range 13) 16301 | -7/Lower Caves | Learned Factory garrison access intel 16844 | -7/Lower Caves | Spotted B-75 Beast 16893 | -7/Lower Caves | Destroyed B-75 Beast 17368 | -7/Lower Caves | Discovered new exit (range 10) 17816 | -7/Lower Caves | Entered Data Miner 17816 | -7/Data Miner | Accompanied by 1 ally 17816 | -7/Data Miner | Discovered new exit (range 6) 17839 | -7/Data Miner | Met Data Miner 17867 | -7/Data Miner | Learned location of Section 7 (-2) 17867 | -7/Data Miner | Acquired the access code to Warlord's prototype stash 17889 | -7/Data Miner | Received God Mode back door access code from Data Miner 17938 | -7/Data Miner | Entered Proximity Caves 17938 | -6/Proximity Caves | Accompanied by 1 ally 18088 | -6/Proximity Caves | Spotter reported a threat 18117 | -6/Proximity Caves | Spotter reported a threat 18234 | -6/Proximity Caves | Spotter reported a threat 18467 | -6/Proximity Caves | Spotter reported a threat 18574 | -6/Proximity Caves | Spotter reported a threat 18747 | -6/Proximity Caves | Spotter reported a threat 18817 | -6/Proximity Caves | Learned Factory emergency access door positions 19767 | -6/Proximity Caves | Attracted the attention of an 0b10 checkpoint 19991 | -6/Proximity Caves | Entered Factory 19991 | -6/Factory | Evolved 2 slots: Power x1, Utility x1 19992 | -6/Factory | Identified exit to Lower Caves 19995 | -6/Factory | Loaded intel: 54 interactive machine locations 19996 | -6/Factory | Loaded intel: 4 garrison access locations 20168 | -6/Factory | Joined by Warlord Geek squad 20341 | -6/Factory | Search patrols dispatched 20494 | -6/Factory | Watched by a mysterious "MATRIX" hacker. 20691 | -6/Factory | Search patrols dispatched 20795 | -6/Factory | Fabricated G-50 Soldier? 21041 | -6/Factory | Search patrols dispatched 21084 | -6/Factory | Identified exit to Garrison 21084 | -6/Factory | Entered Garrison 21108 | -6/Garrison | Triggered checkpoint 21296 | -6/Garrison | Triggered checkpoint 21353 | -6/Garrison | Garrison Relay disabled 21494 | -6/Garrison | Triggered checkpoint 21522 | -6/Garrison | Garrison Relay disabled 21964 | -6/Garrison | Triggered checkpoint 21969 | -6/Garrison | Spotted B-75 Beast 21997 | -6/Garrison | Allies destroyed B-75 Beast 22021 | -6/Garrison | Lost 4 allies 22232 | -6/Garrison | Lost 4 parts (1p2u1w) 22454 | -6/Garrison | Destroyed 8 combat bots 22487 | -6/Garrison | Build established: Scavenger-Tank 22488 | -6/Garrison | Triggered checkpoint 22507 | -6/Garrison | Garrison Relay disabled 22542 | -6/Garrison | Discovered new exit (range 14) 22640 | -6/Garrison | Triggered checkpoint 22704 | -6/Garrison | Discovered new exit (range 12) 22756 | -6/Garrison | Triggered checkpoint 22807 | -6/Garrison | Garrison Relay disabled 22870 | -6/Garrison | Triggered checkpoint 22983 | -6/Garrison | Discovered new exit (range 9) 23052 | -6/Garrison | Triggered checkpoint 23100 | -6/Garrison | Garrison Relay disabled 23194 | -6/Garrison | Entered Factory 23343 | -6/Factory | Joined by Warlord Geek squad 23344 | -6/Factory | Joined by Warlord Muscle squad 23634 | -6/Factory | Lost 3 allies 23680 | -6/Factory | Discovered exit to Lower Caves (range 4) 23743 | -6/Factory | Entered Lower Caves 24441 | -6/Lower Caves | Encountered a Warlord checkpoint 24459 | -6/Lower Caves | Identified exit to Lower Caves 24490 | -6/Lower Caves | Found Alien Artifact 24490 | -6/Lower Caves | Identified Core Expander 24490 | -6/Lower Caves | Installed Core Expander, added new Propulsion slot 24842 | -6/Lower Caves | Build established: Tank 25210 | -6/Lower Caves | Entered another Lower Caves area 25366 | -6/Lower Caves | Identified exit to Factory 25483 | -6/Lower Caves | Learned location of 1 exit from Proximity Caves 25543 | -6/Lower Caves | Encountered a Warlord checkpoint 25572 | -6/Lower Caves | Identified exit to Zion 26624 | -6/Lower Caves | Build established: Mutant 26644 | -6/Lower Caves | Ambushed by wild Derelicts 26655 | -6/Lower Caves | Entered Zion 26745 | -6/Zion | Received a visual enhancement algorithm 26753 | -6/Zion | Discovered new exit (range 15) 27099 | -6/Zion | Found Prototype Device 27101 | -6/Zion | Identified Mobile Refinery Mk. CCLXVII 27295 | -6/Zion | Learned Factory emergency access door positions 27372 | -6/Zion | Learned location of Quarantine (-2) 27404 | -6/Zion | Learned location of 1 exit from Proximity Caves 27521 | -6/Zion | Met Imprinter 27773 | -6/Zion | Entered Proximity Caves 27888 | -5/Proximity Caves | Spotted B-75 Beast 27911 | -5/Proximity Caves | Destroyed B-75 Beast 28015 | -5/Proximity Caves | Attracted the attention of an 0b10 checkpoint 28070 | -5/Proximity Caves | Build established: Tank 28288 | -5/Proximity Caves | Learned 4 Factory zone layouts 28949 | -5/Proximity Caves | Entered Factory 28949 | -5/Factory | Evolved 2 slots: Utility x2 29251 | -5/Factory | Discovered new exit (range 17) 29262 | -5/Factory | Joined by Warlord Muscle squad 29415 | -5/Factory | Build established: Scavenger-Tank 29699 | -5/Factory | Discovered new exit (range 22) 29853 | -5/Factory | Destroyed 7 combat bots 29858 | -5/Factory | Lost 3 parts (1p1n1u) 30284 | -5/Factory | Incoming investigation squad redirected 30318 | -5/Factory | Identified exit to Garrison 30318 | -5/Factory | Entered Garrison 30407 | -5/Garrison | Destroyed 7 combat bots 30457 | -5/Garrison | Triggered checkpoint 30496 | -5/Garrison | Garrison Relay disabled 30677 | -5/Garrison | Triggered checkpoint 30728 | -5/Garrison | Lost 3 parts (1p1n1u) 30747 | -5/Garrison | System corruption reached 10% 30825 | -5/Garrison | Triggered checkpoint 31004 | -5/Garrison | Garrison Relay disabled 31318 | -5/Garrison | Discovered new exit (range 10) 31324 | -5/Garrison | Found embedded Infiltrators 31376 | -5/Garrison | Triggered checkpoint 31551 | -5/Garrison | Destroyed 12 combat bots 31570 | -5/Garrison | Found Prototype Device 31571 | -5/Garrison | Identified Exp. Shock Absorption System 31744 | -5/Garrison | Garrison Relay disabled 31814 | -5/Garrison | Triggered checkpoint 31877 | -5/Garrison | Discovered new exit (range 10) 31938 | -5/Garrison | Triggered checkpoint 31984 | -5/Garrison | Garrison Relay disabled 32186 | -5/Garrison | Phase Generator disabled 32249 | -5/Garrison | Entered Factory 32753 | -5/Factory | Joined by Warlord Geek squad 33149 | -5/Factory | First assault squad dispatched 33166 | -5/Factory | Incoming assault squad redirected 33231 | -5/Factory | Build established: Tank 33728 | -5/Factory | Discovered new exit (range 12) 33765 | -5/Factory | Identified exit to Upper Caves 33847 | -5/Factory | High security lockdown imminent 33900 | -5/Factory | Entered Upper Caves 33950 | -5/Upper Caves | Attracted the attention of an 0b10 checkpoint 33964 | -5/Upper Caves | Identified exit to Upper Caves 33993 | -5/Upper Caves | Learned Factory stockpile data 34904 | -5/Upper Caves | Entered an active Warlord outpost 34949 | -5/Upper Caves | A Commander dispatched an escort 34955 | -5/Upper Caves | Learned Research emergency access door positions 35206 | -5/Upper Caves | Entered another Upper Caves area 35206 | -5/Upper Caves | Accompanied by 3 allies 35207 | -5/Upper Caves | Commander's escort returned to base 35207 | -5/Upper Caves | Commander's escort returned to base 35457 | -5/Upper Caves | Attracted the attention of an 0b10 checkpoint 35678 | -5/Upper Caves | Encountered a Warlord checkpoint 35742 | -5/Upper Caves | Spotted B-75 Beast 35761 | -5/Upper Caves | Destroyed B-75 Beast 36092 | -5/Upper Caves | Discovered new exit (range 5) 36383 | -5/Upper Caves | Entered Zhirov 36386 | -5/Zhirov | Discovered new exit (range 4) 36415 | -5/Zhirov | Met Zhirov 36445 | -5/Zhirov | Learned location of Command (-1) 36461 | -5/Zhirov | Zhirov requested help retrieving the SGEMP Prototype 36492 | -5/Zhirov | Found Alien Artifact 36492 | -5/Zhirov | Identified Integrated Dissipator 36492 | -5/Zhirov | Installed Integrated Dissipator, increased core heat dissipation (+20) 36562 | -5/Zhirov | Found Alien Artifact 36619 | -5/Zhirov | Build established: Mutant 36645 | -5/Zhirov | Entered Proximity Caves 36646 | -4/Proximity Caves | Identified exit to Factory 36693 | -4/Proximity Caves | Destroyed 7 combat bots 36927 | -4/Proximity Caves | Build established: Tank 37499 | -4/Proximity Caves | Build established: Derelict-Tank 37852 | -4/Proximity Caves | Attracted the attention of an 0b10 checkpoint 37858 | -4/Proximity Caves | Core integrity fell below 50% 37932 | -4/Proximity Caves | Unaware initiated a cargo recovery operation 38264 | -4/Proximity Caves | Found Prototype Launcher 38265 | -4/Proximity Caves | Identified Hellfire Missile Launcher 38292 | -4/Proximity Caves | Found Hellfire Missile Launcher 38376 | -4/Proximity Caves | Build established: Tank 38377 | -4/Proximity Caves | Entered Factory 38377 | -4/Factory | Evolved 2 slots: Power x1, Propulsion x1 38378 | -4/Factory | Identified exit to Extension 39104 | -4/Factory | Identified exit to Upper Caves 39229 | -4/Factory | Build established: Scavenger-Tank 39490 | -4/Factory | Discovered new exit (range 16) 39809 | -4/Factory | Entered Upper Caves 39838 | -4/Upper Caves | Attracted the attention of an 0b10 checkpoint 39912 | -4/Upper Caves | Build established: Gunner 40306 | -4/Upper Caves | Spotted B-86 Titan 40959 | -4/Upper Caves | Destroyed B-86 Titan 41153 | -4/Upper Caves | Learned location of 1 exit from Research 41218 | -4/Upper Caves | Discovered new exit (range 14) 41449 | -4/Upper Caves | Entered another Upper Caves area 41466 | -4/Upper Caves | Spotted B-86 Titan 41936 | -4/Upper Caves | Ambushed by research squad 42451 | -4/Upper Caves | Discovered new exit (range 8) 42717 | -4/Upper Caves | Entered Warlord 42745 | -4/Warlord | Discovered new exit (range 20) 42767 | -4/Warlord | System corruption cleaned by Quarantine Array 43002 | -4/Warlord | Build established: Mutant 43302 | -4/Warlord | Opened Warlord's prototype stash 43308 | -4/Warlord | Found Prototype Reactor 43308 | -4/Warlord | Identified Vortex Chain Reactor 43314 | -4/Warlord | Found Prototype Device 43315 | -4/Warlord | Identified Exp. Phase Shifter 43331 | -4/Warlord | Found System Mapper 43339 | -4/Warlord | Found Prototype Processor 43348 | -4/Warlord | Identified Exp. Core Analyzer 43431 | -4/Warlord | Visited the Vortex Lab 43438 | -4/Warlord | Warlord's base attacked by MAIN.C 43439 | -4/Warlord | Found Prototype Energy Gun 43440 | -4/Warlord | Identified Vortex Rail 43447 | -4/Warlord | Found Prototype Energy Cannon 43448 | -4/Warlord | Identified Vortex Cannon 43454 | -4/Warlord | Found Vortex Cannon 43457 | -4/Warlord | Found Vortex Cannon 43463 | -4/Warlord | Found Vortex Cannon 43603 | -4/Warlord | Build established: Gunner 43615 | -4/Warlord | Met Warlord 43788 | -4/Warlord | Warlord forces counterattacked 43843 | -4/Warlord | Spotted Executioner 43845 | -4/Warlord | Spotted Executioner 43848 | -4/Warlord | Spotted B-90 Cyclops 43853 | -4/Warlord | Lost 3 allies 43857 | -4/Warlord | Destroyed Executioner 43858 | -4/Warlord | Spotted Executioner 43870 | -4/Warlord | Destroyed Executioner 43909 | -4/Warlord | Lost 9 allies 43923 | -4/Warlord | Destroyed 13 combat bots 43929 | -4/Warlord | Lost 6 parts (1p4n1u) 44006 | -4/Warlord | Entered Proximity Caves 44012 | -3/Proximity Caves | Lost 5 allies 44218 | -3/Proximity Caves | Build established: Scavenger-Gunner 44803 | -3/Proximity Caves | Spotted B-86 Titan 44919 | -3/Proximity Caves | Discovered new exit (range 7) 45232 | -3/Proximity Caves | Entered Research 45232 | -3/Research | Evolved 2 slots: Utility x2 45233 | -3/Research | Identified exit to Armory 45234 | -3/Research | Identified exit to Testing 45439 | -3/Research | Identified Transdimensional Reconstructor 45578 | -3/Research | Destroyed 7 combat bots 45967 | -3/Research | Entered Testing 46005 | -3/Testing | Found Prototype Launcher 46006 | -3/Testing | Identified Z-bomb Delivery System 46043 | -3/Testing | Found Prototype Energy Cannon 46043 | -3/Testing | Identified Hpw. Disruptor Cannon 46112 | -3/Testing | Found Prototype Energy Gun 46112 | -3/Testing | Identified Tachyon Dispersion Ray 46157 | -3/Testing | Spotted Superbehemoth 46251 | -3/Testing | Scanned by Researcher 46302 | -3/Testing | Found Ghost Barrier 46331 | -3/Testing | Found Prototype Device 46378 | -3/Testing | Identified Exp. Shield Generator 46444 | -3/Testing | System corruption reached 10% 46562 | -3/Testing | Found Prototype Protection 46590 | -3/Testing | Build established: Hacker-Gunner 46756 | -3/Testing | Discovered new exit (range 12) 46845 | -3/Testing | Spotted PX-Z07FRM3OCZ 46864 | -3/Testing | Destroyed PX-Z07FRM3OCZ 47178 | -3/Testing | Identified SHELL Armor 47211 | -3/Testing | Found Prototype Device 47230 | -3/Testing | Found Prototype Energy Gun 47231 | -3/Testing | Identified Hyp. EM Gauss Rifle 47268 | -3/Testing | Identified Exp. EM Disruption Field 47340 | -3/Testing | Found Prototype Device 47342 | -3/Testing | Identified AEGIS Remote Shield 47467 | -3/Testing | First assault squad dispatched 47486 | -3/Testing | Incoming assault squad redirected 47621 | -3/Testing | Found Prototype Ballistic Cannon 47623 | -3/Testing | Identified Perforator 47707 | -3/Testing | Found Prototype Energy Cannon 47707 | -3/Testing | Identified Disintegrator 47737 | -3/Testing | Incoming assault squad redirected 47739 | -3/Testing | Incoming assault squad redirected 47757 | -3/Testing | Identified exit to Garrison 47757 | -3/Testing | Entered Garrison 47819 | -3/Garrison | Destroyed 7 combat bots 47830 | -3/Garrison | Garrison Relay disabled 47925 | -3/Garrison | Triggered checkpoint 47944 | -3/Garrison | Spotted B-86 Titan 47976 | -3/Garrison | Destroyed 7 combat bots 48002 | -3/Garrison | Destroyed B-86 Titan 48121 | -3/Garrison | Found embedded Infiltrators 48136 | -3/Garrison | Garrison Relay disabled 48171 | -3/Garrison | Discovered new exit (range 11) 48257 | -3/Garrison | Triggered checkpoint 48435 | -3/Garrison | Spotted B-86 Titan 48482 | -3/Garrison | Discovered new exit (range 8) 48507 | -3/Garrison | Spotted Executioner 48507 | -3/Garrison | Spotted Executioner 48516 | -3/Garrison | Destroyed Executioner 48530 | -3/Garrison | Allies destroyed Executioner 48571 | -3/Garrison | Triggered checkpoint 48588 | -3/Garrison | Garrison Relay disabled 48643 | -3/Garrison | Allies destroyed B-86 Titan 48912 | -3/Garrison | Discovered new exit (range 9) 48917 | -3/Garrison | Triggered checkpoint 48953 | -3/Garrison | Triggered checkpoint 49005 | -3/Garrison | Garrison Relay disabled 49120 | -3/Garrison | Rescued a captive Derelict 49177 | -3/Garrison | Triggered checkpoint 49188 | -3/Garrison | Garrison Relay disabled 49229 | -3/Garrison | Attempted to access garrison exit controls, blocked by remote lockdown 49287 | -3/Garrison | Triggered checkpoint 49472 | -3/Garrison | Entered Research 49472 | -2/Research | Accompanied by 4 allies 49472 | -2/Research | Warlord forces began assault on 0b10 49472 | -2/Research | Evolved 2 slots: Utility x1, Weapon x1 49473 | -2/Research | Identified exit to Quarantine 49497 | -2/Research | Distinguished unit "Bridgeowners Association" dispatched to help 49497 | -2/Research | Distinguished unit "Smaug Mourners" dispatched to help 49562 | -2/Research | Identified exit to Access 49582 | -2/Research | Research machine network offline 49591 | -2/Research | Found Prototype Device 49591 | -2/Research | Identified Exp. Thermal Defense Suite 49597 | -2/Research | Met up with Warlord 49735 | -2/Research | Borebot progress halted 49884 | -2/Research | Spotted B-90 Cyclops 50135 | -2/Research | Borebot progress halted 50249 | -2/Research | Spotted Striker 50279 | -2/Research | Lost 3 allies 50341 | -2/Research | Borebot progress halted 50345 | -2/Research | Met DD-05H 50764 | -2/Research | Spotted Striker 50765 | -2/Research | Spotted Executioner 50806 | -2/Research | Spotted Executioner 50825 | -2/Research | Found Adv. Kinecellerator 50929 | -2/Research | Spotted JE-S6W(D) 50931 | -2/Research | Spotted Executioner 50967 | -2/Research | Spotted Striker 50969 | -2/Research | Spotted Striker 50975 | -2/Research | Given Cave Seal Controls access code 50983 | -2/Research | Lost 5 allies 51131 | -2/Research | Spotted Striker 51206 | -2/Research | Entered Quarantine 51279 | -2/Quarantine | Found Alien Artifact 51279 | -2/Quarantine | Identified Phase Armor 51332 | -2/Quarantine | Cryocooling Duct disabled 51347 | -2/Quarantine | Ambient heat levels rising (+20) 51347 | -2/Quarantine | Non-combat units ordered to evacuate 51419 | -2/Quarantine | Unchained authorized (BL-1NK) 51600 | -2/Quarantine | Lost 4 allies 51920 | -2/Quarantine | Spotted Alpha 7 51932 | -2/Quarantine | Destroyed Alpha 7 52286 | -2/Quarantine | Destroyed BL-1NK 52308 | -2/Quarantine | Found Prototype Processor 52309 | -2/Quarantine | Identified Zeronet Interface 52531 | -2/Quarantine | Found Alien Impact Weapon 52701 | -2/Quarantine | Spotted Fortress 52705 | -2/Quarantine | Identified Core Stripper 52720 | -2/Quarantine | Destroyed Fortress 52726 | -2/Quarantine | Found Vortex Chain Reactor 52746 | -2/Quarantine | Found Prototype Device 52746 | -2/Quarantine | Identified Exp. Force Field 52749 | -2/Quarantine | Found Prototype Device 52749 | -2/Quarantine | Identified Thermal Barrier 52766 | -2/Quarantine | Found Prototype Device 52766 | -2/Quarantine | Identified Exp. EM Shield 52894 | -2/Quarantine | Discovered new exit (range 6) 52894 | -2/Quarantine | Discovered new exit (range 5) 52901 | -2/Quarantine | Entered Protoforge 53003 | -2/Protoforge | Targeted by mysterious "MATRIX" hacker. 53015 | -2/Protoforge | Spotted Hotshot 53015 | -2/Protoforge | Spotted Hotshot 53015 | -2/Protoforge | Spotted Hotshot 53065 | -2/Protoforge | Superfortress began startup sequence 53117 | -2/Protoforge | Discovered exit to Access (range 13) 53234 | -2/Protoforge | Spotted Hotshot 53234 | -2/Protoforge | Spotted Hotshot 53239 | -2/Protoforge | Destroyed Hotshot 53239 | -2/Protoforge | Spotted Hotshot 53242 | -2/Protoforge | Spotted Hotshot 53244 | -2/Protoforge | Spotted Hotshot 53246 | -2/Protoforge | Destroyed Hotshot 53250 | -2/Protoforge | Destroyed Hotshot 53292 | -2/Protoforge | Spotted Immortal 53294 | -2/Protoforge | Spotted Overlord 53301 | -2/Protoforge | Spotted Immortal 53304 | -2/Protoforge | Spotted Immortal 53326 | -2/Protoforge | Warped through subspace 53397 | -2/Protoforge | Spotted Hotshot 53398 | -2/Protoforge | Spotted Hotshot 53399 | -2/Protoforge | Spotted Hotshot 53401 | -2/Protoforge | First assault squad dispatched 53412 | -2/Protoforge | Destroyed Hotshot 53419 | -2/Protoforge | Incoming assault squad redirected 53426 | -2/Protoforge | Spotted Hotshot 53428 | -2/Protoforge | Destroyed Hotshot 53433 | -2/Protoforge | Spotted Hotshot 53443 | -2/Protoforge | Destroyed Hotshot 53476 | -2/Protoforge | Destroyed Overlord 53487 | -2/Protoforge | Destroyed Hotshot 53499 | -2/Protoforge | Destroyed Hotshot 53520 | -2/Protoforge | Destroyed 9 combat bots 53533 | -2/Protoforge | Destroyed Hotshot 53587 | -2/Protoforge | Build established: Hacker-Tank 53612 | -2/Protoforge | Found Prototype Energy Gun 53614 | -2/Protoforge | Identified Cep. Variable Chargecaster 53638 | -2/Protoforge | Found Prototype Storage 53639 | -2/Protoforge | Identified Cep. Chromion Battery 53642 | -2/Protoforge | Found Cep. Chromion Battery 53644 | -2/Protoforge | Found Cep. Chromion Battery 53648 | -2/Protoforge | Found Cep. Chromion Battery 53712 | -2/Protoforge | Found Prototype Device 53737 | -2/Protoforge | Identified Exp. Trap Extractor 53825 | -2/Protoforge | Crushed by falling debris 53826 | -2/Protoforge | System corruption reached 10% 53868 | -2/Protoforge | Lost 3 parts (1p2u) 53918 | -2/Protoforge | Incoming assault squad redirected 53939 | -2/Protoforge | Lost 7 parts (2p1n3u1w) 53945 | -2/Protoforge | Destroyed 9 combat bots 53958 | -2/Protoforge | Spotted Immortal 53965 | -2/Protoforge | Spotted Immortal 53967 | -2/Protoforge | Spotted Immortal 53970 | -2/Protoforge | Garrison activated, responded to threat 53987 | -2/Protoforge | Core integrity fell below 50% 54014 | -2/Protoforge | Core integrity fell below 20% 54018 | -2/Protoforge | Destroyed by Immortal with Experimental Jetlance Last Messages --------------- 54013_ Immortal suffers critical hit (Destroy). 54013_ Destroyed Imp. Thunder Leg. 54013_ HV Slug penetrates Reinforced Barrier. 54013_ HV Slug penetrates L-61 Swordsman. 54013_ HV Slug penetrates Immortal. 54013_ Immortal suffers critical hit (Destroy). 54013_ Destroyed Prototype Device. 54013_ HV Slug penetrates Immortal. 54013_ Immortal suffers critical hit (Destroy). 54013_ HV Slug penetrates Immortal. 54013_ Immortal suffers critical hit (Destroy). 54013_ Destroyed Adv. Coolant Injector. 54013_ Immortal knocked back. 54013_ HV Slug penetrates L-61 Swordsman. 54013_ HV Slug penetrates Immortal. 54013_ HV Slug penetrates Reinforced Barrier. 54013_ HV Slug penetrates Immortal. 54013_ Immortal knocked back. 54017_ Perforator destroyed. 54018_ Critical hit (Impale). Map ----- +----------------------------------------------------+ | ?????????????????????????????????????????????????? | | ?????????????????????????????????????????????????? | | ?????????????????????????????????????????????????? | | ?????????????????????????????????????????????????? | | ?????????????????????????????????????????????????? | | ?????????????????????????????????????????????????? | | ?????????????????????????????????????????????????? | | ?????????????????????????????????????????????????? | | ?????????????????????????????????????????????????? | | ?????????????????????????????????????????????????? | | ??????????????????????? ????????????????????????? | | ??????????????????????? "???????????????????????? | | ??????????????????????? #???????????????????????? | | ??????????????????????# #???????????????????????? | | ??????????????????????# #???????????????????????? | | ??????????????????????# #???????????????????????? | | ??????????????????????# #???????????????????????? | | ??????????????????????# #???????????????????????? | | ??????????????????????# #???????????????????????? | | ??????????????????????# #???????????????????????? | | ??????????????????????# #???????????????????????? | | ??????????????????????# #???????????????????????? | | ???????################ !#???????????????????????? | | ??????? l%##??????????????????????? | | ??????? u pllY#??????????????????????? | | ??????? l p%]@#??????????????????????? | | ??????????????##### #####??????????????????????? | | ??????????????????# #??????????????????????????? | | ??????????????????# ^#??????????????????????????? | | ??????????????????# #??????????????????????????? | | ??????????????????#% #??????????????????????????? | | ??????????????????# % #??????????????????????????? | | ??????????????????# % #??????##??????????????????? | | ??????????????????#%% #######"######### ?????????? | | ??????????????????# ????????? | | ??????????????????# ????????? | | ??????????????????# ????????? | | ??????????????????######"" #?????????????? | | ??????????????????????? " % #?????????????? | | ???????????????????????? " #?????????????? | | ????????????????????????#" % #?????????????? | | ?????????????????????????" #?????????????? | | ??????????????????####???#" ##?????????????? | | ?????????????????## # ####" #??????????????? | | ????????????????#####""#"#" ###????????????? | | ???????????????## # = % """"???????????? | | ??????????????## # ""% """??????????? | | ############### ## $$"" "" ?????????? | | """""## ##""""" ### $% " "" ?????????? | | # %##"## ##### $!% ????????? | +----------------------------------------------------+ Best States ------------- Heat Dissipation 128 Energy Generation 79 Energy Capacity 1890 Matter Stores 423 Matter Capacity 700 Sight Range 23 Terrain Scan Range 20 Terrain Scan Density 10 Jamming Range 14 Base Temperature (-) 200 EM Shielding 4 Armor Coverage 1800 Resistance: KI 30 Resistance: TH 50 Resistance: EM 15 Utility Shielding 90 Weapon Cycling 25 Phase Shifting 10 Evasion (%) 50 Targeting Accuracy 8 Core Analysis 8 Recoil Reduction 6 Kinecelleration 50 Offensive Hacking 21 Defensive Hacking 20 Item Schematics ----------------- Huge Storage Unit | -10/Materials | Hacked Hcp. Storage Unit | -10/Materials | Hacked Imp. VTOL Module | -8/Materials | Scanalyzed Combat Drone Bay | -7/Data Miner | Free Lgt. Regenerative Plating | -7/Data Miner | Free Cld. Aerolev Unit | -7/Data Miner | Free Thermal Defense Suite | -7/Data Miner | Free Imp. Heavy Machine Gun | -7/Data Miner | Free Antigrav System | -7/Data Miner | Free Adv. Recoil Stabilizer | -7/Data Miner | Free Mass Driver | -7/Data Miner | Free Hpw. Shock Rifle | -7/Data Miner | Free Neutrino Core | -7/Data Miner | Free Assault Drone Bay | -5/Zhirov | Free Exp. Heat Sink | -5/Zhirov | Free Exp. Optical Array | -5/Zhirov | Free Imp. Arc Thrower | -5/Zhirov | Free Cld. Antigrav System | -3/Testing | Archive Hvy. Neutron Cannon | -3/Testing | Archive Enh. Biometal Leg | -3/Testing | Archive Plasma Lance | -3/Testing | Archive Adv. Gravity Neutralizer | -2/Quarantine | Archive Adv. KE Penetrator | -2/Quarantine | Archive Robot Schematics ------------------ A-15 Conveyor | -7/Data Miner | Free G-50 Soldier | -7/Data Miner | Free H-66 Slayer | -7/Data Miner | Free W-25 Informer | -7/Data Miner | Free E-15 Imp | -7/Data Miner | Free S-27 Virus | -7/Data Miner | Free R-10 Processor | -7/Data Miner | Free B-48 Gladiator | -7/Data Miner | Free Fabricated ------------ Nothing Repaired ---------- Nothing Studied --------- Arm. Wheel | -8/Materials | Hacked Arm. Huge Wheel | -7/Factory | Hacked Lrn. Missile Launcher | -5/Factory | Hacked Matter Neutralizer | -4/Factory | Hacked Antimatter Reactor | -3/Research | Hacked Alien Tech Used ----------------- Core Expander Integrated Dissipator Phase Armor Core Stripper Transdimensional Reconstructor Achievements -------------- Doshington Special Forces Squad Leader Challenges ------------ None Game ------ Seed GravmagWarpForcewell Manual? 0 Play Time 08:03:44 Cumulative 1084.4 hours Start 2026.02.22 @ 20:32:13 End 2026.02.24 @ 17:08:24 Sessions 10 Manual Loads 0 Difficulty Rogue Special Mode None Game No. 195 Rogue 195 Adventurer 0 Explorer 0 Win Type - Total 64 Types 25/7/10/1/3/1/9/4/2/2 Lore% 93 Gallery% 90 Achievement% 80 Wizard Run 0 Options --------- Layout 0 ASCII 0 Keyboard 0 Movement Numpad Keybinds 0 Fullscreen 1 Font 18/SmallcapsGlow Map View 76x50 Zoom Use 0% Tactical HUD 1 Map Filters NONE Filters NONE Steam 1 RUN: 4b73d3cd-6a61-47ff-a7a2-f9948ed5d06d